Workbook

Sheet Calculation Sheet
B1: TPS25981 Design Calculation Tool
P2: Table - 1: Device Comparison Table
C3: Constants Cells | P3: Part number | Q3: Overvoltage Response | R3: Overcurrent response | S3: PG | T3: FLT | U3: Response to Thermal Shutdown (TSD)
C4: Input/SelectCells | P4: TPS259814A | Q4: Adjustable OVLO | R4: Circuit Breaker | S4: Yes | T4: Yes | U4: Auto-Retry
C5: Calculation Cells | P5: TPS259814L | Q5: Adjustable OVLO | R5: Circuit Breaker | S5: Yes | T5: Yes | U5: Latch-off
C6: Calculated, but can be over-ridden by user
C7: Error Cells, Must be Fixed
B9: Parameter | C9: Description | D9: Value | E9: Units | F9: Tolerance | G9: Recommended Value
B10: Select Device | C10: Choose from the drop down between retry and latch variant. | D10: TPS259814A
B11: VIN (max) | C11: Maximum Operating input voltage (magnitude) | D11: 15 | E11: V
B12: OVLO Set Point | C12: Desired Over Voltage Lockout Set Point | D12: 16 | E12: V | F12: 0.03
B13: UVLO Set Point | C13: Desired Undervoltage Threshold (VIN Rising) | D13: 10.8 | E13: V | F13: 0.03
B14: VUVP | C14: Internal Undervoltage Protection Threshold (VIN Rising) | D14: 2.53 | E14: V | F14: 0.03
B15: Cout | C15: Load Capacitance | D15: 1 | E15: uF | F15: 0.1
C16: Is there downstream load present other than load cap at startup? | D16: YES
B17: VONTH (CR) (V) | C17: constant resistance load turn on threshold voltage | D17: 0 | E17: V
B18: RLOAD (STARTUP) (Ω) | C18: CR load at startup | D18: 3 | E18: Ohm
B19: VONTH (CC) (V) | C19: constant current load turn on threshold voltage | D19: 3 | E19: V
B20: ILOAD (STARTUP) (A) | C20: CC load at startup | D20: 0 | E20: A
B21: VONTH (CP) (V) | C21: constant power load turn on threshold voltage | D21: 8 | E21: V
B22: PLOAD (STARTUP) (W) | C22: CP load at startup | D22: 0 | E22: W
B23: Istartup(A) | C23: It is sum of max downstream load current and load cap charge current during startup .It should be <Imax | D23: =(Vcc_max/TSD!AD5+TSD!AD7+TSD!AD9/D21+Icharge/1000) -> 5.001375 | E23: A
B24: Imax | C24: Maximum continuous load current (magnitude) | D24: 7 | E24: A
B25: Ilimit | C25: Current Limit, 10.5% higher than maximum continuous load current | D25: =IF(1.105*Imax<1.5, 1.5, IF(1.105*Imax>11, 11,1.105*Imax )) -> 7.735 | E25: A
B26: tITIMER | C26: Load transient blanking interval | D26: 800 | E26: ms
B27: TA, MAX | C27: Maximum Operating Ambient temperature | D27: 25 | E27: °C
B30: UVLO, OVLO set point calculations | L30: R2+R3
B31: UVLO Set Point | C31: Desired Undervoltage Threshold (VIN Rising) | D31: =D13 -> 10.8 | L31: =(OVref*D33)/(D31-OVref) -> 58.75
B32: OVLO Set Point | C32: Desired Over Voltage Lockout Set Point | D32: =D12 -> 16 | J32: =D40 -> 9.818381113 | K32: Power Fail (VIN Falling) | L32: R2
B33: R1: Pullup at EN/OVLO Pin | C33: Value > 350K recommended | D33: 470 | E33: kOhm | F33: 0.01 | J33: =D39 -> 10.71096121 | K33: Release UVLO (VIN Rising) | L33: =IF(D34>=10000,D34/100,IF(D34>=1000,D34/10,IF(D34>=100,D34,IF(D34>=10,D34*10,D34*100)))) -> 190.9375
B34: R2_cal | C34: Calculated value of Resistor at EN/OVLO pin | D34: =L31-D35 -> 19.09375 | E34: kOhm | J34: =D42 -> 14.48333333 | K34: Release OVLO (VIN Falling) | L34: =INDEX('Res EIA Tables'!E$5:E$197,2+MATCH(L33,'Res EIA Tables'!E$5:E$197)) -> 191
B35: R3_cal | C35: Calculated value of Resistor at EN/OVLO pin | D35: =(D33+L31)*OVref/D32 -> 39.65625 | E35: kOhm | J35: =D41 -> 15.8 | K35: OV Cutoff (VIN Rising) | L35: R3
B36: SELECT THE VALUE OF RESISTORS AS CLOSEST AVAILABLE VALUE OF R2 & R3 | L36: =IF(D35>=10000,D35/100,IF(D35>=1000,D35/10,IF(D35>=100,D35,IF(D35>=10,D35*10,D35*100)))) -> 396.5625 | S36: R2+R3
B37: R2 | C37: Select the closest possible value as R2_cal | D37: =G37 -> 19.1 | E37: kOhm | F37: 0.01 | G37: =L34*D34/L33 -> 19.1 | L37: =INDEX('Res EIA Tables'!E$5:E$197,2+MATCH(L36,'Res EIA Tables'!E$5:E$197)) -> 402 | S37: =(OVref*K39)/(K37-OVref) -> 0
B38: R3 | C38: Select the closest possible value as R3_cal | D38: =G38 -> 40.2 | E38: kOhm | F38: 0.01 | G38: =L37*D35/L36 -> 40.2 | Q38: =K46 -> 0 | R38: Power Fail (VIN Falling) | S38: R2
B39: UV_final_rising | C39: Undervoltage Threshold (VIN Rising) | D39: =OVref*(D33+D37+D38)/(D37+D38) -> 10.71096121 | E39: V | F39: =SQRT(F103^2+F33^2+F37^2+F38^2) -> 0.03464101615 | L39: =IF(D47>=100,D47,IF(D47>=10,D47*10,D47*100)) -> 0 | Q39: =K45 -> 0 | R39: Release UVLO (VIN Rising) | S39: =IF(K40>=10000,K40/100,IF(K40>=1000,K40/10,IF(K40>=100,K40,IF(K40>=10,K40*10,K40*100)))) -> 0
B40: UV_final_falling | C40: Undervoltage Threshold (VIN Falling) | D40: =UVref*(D33+D37+D38)/(D37+D38) -> 9.818381113 | E40: V | F40: =SQRT(F102^2+F33^2+F37^2+F38^2) -> 0.0653375849 | L40: =IF(L39>1000,INDEX('Res EIA Tables'!E$5:E$197,MATCH(L39/10,'Res EIA Tables'!E$5:E$197))*10,INDEX('Res EIA Tables'!E$5:E$197,MATCH(L39,'Res EIA Tables'!E$5:E$197))) ->  | Q40: =K48 -> 0 | R40: Release OVLO (VIN Falling) | S40: =INDEX('Res EIA Tables'!L$5:L$197,2+MATCH(S39,'Res EIA Tables'!L$5:L$197)) -> 
B41: OV_final_rising | C41: Overvoltage Threshold (VIN Rising) | D41: =OVref*(D33+D37+D38)/(D38) -> 15.8 | E41: V | F41: =SQRT(F103^2+F33^2+F37^2+F38^2) -> 0.03464101615 | Q41: =K47 -> 0 | R41: OV Cutoff (VIN Rising) | S41: R3
B42: OV_final_falling | C42: Overvoltage Threshold (VIN Falling) | D42: =UVref*(D33+D37+D38)/(D38) -> 14.48333333 | E42: V | F42: =SQRT(F102^2+F33^2+F37^2+F38^2) -> 0.0653375849 | L42: =IF(#REF!>=10000,#REF!/100,IF(#REF!>=1000,#REF!/10,IF(#REF!>=100,#REF!,IF(#REF!>=10,#REF!*10,#REF!*100)))) ->  | S42: =IF(K41>=10000,K41/100,IF(K41>=1000,K41/10,IF(K41>=100,K41,IF(K41>=10,K41*10,K41*100)))) -> 0
B43: I_R123 | C43: Current in R1, R2 and R3 Branch | D43: =Vcc_max*1000/(D33+D37+D38) -> 28.33931608 | E43: uA | L43: =INDEX('Res EIA Tables'!E$5:E$197,2+MATCH(L42,'Res EIA Tables'!E$5:E$197)) ->  | S43: =INDEX('Res EIA Tables'!L$5:L$197,2+MATCH(S42,'Res EIA Tables'!L$5:L$197)) -> 
L44: =IF(#REF!>=10000,#REF!/100,IF(#REF!>=1000,#REF!/10,IF(#REF!>=100,#REF!,IF(#REF!>=10,#REF!*10,#REF!*100)))) -> 
L45: =INDEX('Res EIA Tables'!E$5:E$197,2+MATCH(L44,'Res EIA Tables'!E$5:E$197)) ->  | S45: =IF(#REF!>=100,#REF!,IF(#REF!>=10,#REF!*10,#REF!*100)) -> 
L46: =IF(D51>=10000,D51/100,IF(D51>=1000,D51/10,IF(D51>=100,D51,IF(D51>=10,D51*10,D51*100)))) -> 852.6179703 | S46: =IF(S45>1000,INDEX('Res EIA Tables'!L$5:L$197,MATCH(S45/10,'Res EIA Tables'!L$5:L$197))*10,INDEX('Res EIA Tables'!L$5:L$197,MATCH(S45,'Res EIA Tables'!L$5:L$197))) -> 
L47: =INDEX('Res EIA Tables'!E$5:E$197,2+MATCH(L46,'Res EIA Tables'!E$5:E$197)) -> 866
S48: =IF(#REF!>=10000,#REF!/100,IF(#REF!>=1000,#REF!/10,IF(#REF!>=100,#REF!,IF(#REF!>=10,#REF!*10,#REF!*100)))) -> 
S49: =INDEX('Res EIA Tables'!L$5:L$197,2+MATCH(S48,'Res EIA Tables'!L$5:L$197)) -> 
B50: Calculations for Ilimit (resistor on ILM Pin) | K50: =Icharge*(10^-3) -> 0.001375 | L50: Inrush Charging Current
B51: RILM_Cal | C51: Calculated current limit resistor | D51: =6595/(Ilimit) -> 852.6179703 | E51: Ohm | K51: =Ilimit_final -> 7.615473441 | L51: Overload Curr Limit
B52: SELECT A ILIMIT RESISTOR WITH THE CLOSEST AVAILABLE VALUE OF Rilm_Cal
B53: RILM | C53: Select the closest available value of RLM_cal | D53: =G53 -> 866 | E53: Ohm | F53: 0.01 | G53: =L47/L46*D51 -> 866
B54: Ilimit_final | C54: Final current Limit Set Point | D54: =6595/D53 -> 7.615473441 | E54: A | F54: =SQRT(0.105^2+F53^2) -> 0.1054751155
B55: Isc | C55: Scalable fast trip threshold | D55: =2*Ilimit_final -> 15.23094688 | E55: A | F55: =F54 -> 0.1054751155
B57: Calculations for SoftStart control (external cap on dVdt pin)
B58: Parameter | C58: Description | D58: Value | E58: Units | F58: Tolerance
B59: I_dVdt | C59: Internal charging current on dVdt | D59: 3.49 | E59: uA | F59: 0.104
B60: Icharge_fastest | C60: Charging current when charging at fastest possible rate | D60: =Cout*(Vcc_max/D61)/1000 -> 0.02654867257 | E60: A
B61: Tchg_fastest | C61: when no external capacitor is connected (max. slew rate) | D61: =Vcc_max*0.023+0.22 -> 0.565 | E61: ms | F61: 0.15
B62: Tchg_req | C62: The charging time required | D62: 10 | E62: ms
B63: Icharge_req | C63: Charging (inrush) current desired in the system | D63: 1 | E63: A
B64: Cext_dvdt_cal1 | C64: calculated value of capacitor at dVdT pin for required Tcharge | D64: =IF(Tchg_req<D61, 0, (3300*Tchg_req/Vcc_max)) -> 2200 | E64: pF
B65: Cext_dvdt_cal2 | C65: calculated value of capacitor at dVdT pin for required Icharge | D65: =(3300*Cout/Icharge_req/1000) -> 3.3 | E65: pF
B66: SELECT A CAPACITOR WITH THE CLOSEST POSSIBLE VALUE to max(Cext_dvdt_cal1, Cext_dvdt_cal2) | G66: =(MAX(D64,D65))/1000 -> 2.2
B67: CdVdT_ext | C67: The external capacitor connecetd across dVdT pin (OPEN, or >=1nF) | D67: =G68 -> 2.4 | E67: nf | F67: 0.1
B68: Icharge | C68: Charging Current through load cap as per dVdT setting | D68: =IF(Cdvdt_ext="OPEN",D60*1000,(Cout*3300/Cdvdt_ext/1000)) -> 1.375 | E68: mA | F68: =SQRT(F70^2+F15^2) -> 0.1414213562 | G68: =IF(G66>1,INDEX('Cap Tables'!B4:B75,1+MATCH(G66,'Cap Tables'!B4:B75)),(INDEX('Cap Tables'!A4:A75,1+MATCH(G66*10,'Cap Tables'!A4:A75))/10)) -> 2.4
B69: Does Device Enter Current Limit during start-up? | D69: =((D23) >= Ilimit_final) -> FALSE | G69: =Cout*0.001*Vcc_max/Ilimit_final -> 0.001969673995
B70: Tchg_dvdt | C70: charge time set | D70: =IF(D69, G69, IF(Cdvdt_ext="OPEN",D61,Vcc_max*Cdvdt_ext*1000/3300)) -> 10.90909091 | E70: ms | F70: =F67 -> 0.1
C72: Will the System have glitch-free startup? | D72: =TSD!C7 -> YES
B73: For CdVdt > 10 nF, it's recommended to add a 100-Ω resistor in series with the capacitor on the dVdt pin | D73: =IF(TSD!E6>=146.1,CONCATENATE("Device may be experiencing high average or gradually increasing power dissipation during startup."," Here are a few options to try out to achieve successful startup: 1. Decrease resistive load 2. Decrease CDVDT cap 3. Decrease ambient temperature"),IF(TSD!F6>=58,CONCATENATE("Device may be experiencing high peak power dissipation during early phase of startup."," Here are a few options to try out to achieve successful startup: 1. Decrease output load cap 2. Increase CDVDT cap 3. Decrease CC load during start-up 4. Decrease CP load during start-up.")," ")) -> 
B79: Steady state Voltage drop & Power dissipation
B80: Parameter | C80: Description | D80: Value | E80: Units | F80: Tolerance
B81: Vdrop | C81: Maximum voltage drop across device @ 25 degC | D81: =Imax*Rdson_25deg -> 42 | E81: mV
B82: Pdiss_Imax | C82: Steady state power dissipation with Max current @ 25degC | D82: =Imax^2*Rdson_25deg -> 294 | E82: mW
B84: Setting Overcurrent Blanking Interval (tITIMER)
B85: Parameter | C85: Description | D85: Value | E85: Units | F85: Tolerance
B86: CITIMER_cal | C86: Calculated Capacitor value at ITIMER pin | D86: =D26*2/1.51 -> 1059.602649 | E86: nF
B87: CITIMER_sel | C87: Select Closest value as CITIMER_cal | D87: =G87 ->  | E87: nF | F87: 0.1 | G87: =INDEX('Cap Tables'!B4:B75,1+MATCH(D86,'Cap Tables'!B4:B75)) -> 
B88: tITIMER_final | C88: Final Load transient blanking interval | D88: =D87*1.51/2 ->  | E88: ms
B90: Parameters internal to Device
B91: Internal FET Parameters
B92: Parameter | C92: Description | D92: Value | E92: Units | F92: Tolerance
B93: VIN(Max) | C93: Maximum input voltage | D93: 16 | E93: V
B94: ID(max) | C94: FET drain-source current rating (maximum) | D94: 10 | E94: A
B95: Rds(on)(typ) | C95: FET Rds(on) for –40°C ≤ TJ ≤ 125°C | D95: 6 | E95: mOhm
B97: Thermal Parameters
B98: Tj(max) | C98: Device maximum junction temperature | D98: 154 | E98: C
B99: RJA | C99: Junction to ambient thermal resistance | D99: 49.7 | E99: C/W
B101: Internal References
B102: UVref | C102: Internal Undervoltage reference (Falling) | D102: 1.1 | E102: V | F102: 0.063
B103: OVref | C103: Internal Overvoltage reference (Rising) | D103: 1.2 | E103: V | F103: 0.03
B104: GainIMON | C104: Current monitor gain | D104: 95 | E104: uA/A | F104: 0.037
B105: PGTH | C105: Internal Power good reference(Rising) | D105: 1.2 | E105: v

Sheet TSD (hidden)
B2: VIN (V) | C2: =Vcc_max -> 15
E4: VDS | F4: 5.469 | AC4: CLOAD (µF) | AD4: =Cout -> 1 | AF4: ='Calculation Sheet'!D16 -> YES
E5: MAX FET temp | F5: MAX TREL | AC5: RLOAD (STARTUP) (Ω) | AD5: =IF(AF4="NO",1000000,Rlstart) -> 3
B6: MAX AMBIENT TEMPERATURE (⁰C) | C6: ='Calculation Sheet'!D27 -> 25 | E6: =MAX(P27:P2027) -> 97.77624508 | F6: =MAX(AF27:AF2027) -> 36.80477012 | AC6: VONTH (CR) (V) | AD6: ='Calculation Sheet'!D17 -> 0
B7: successful startup | C7: =IF(AND(F6<58,E6<146.01),"YES",IF(AND(F6<60,E6<160),"MARGINAL",IF(OR(F6>=60,E6>=160),"NO","Unable to decide"))) -> YES | AC7: ILOAD (STARTUP) (A) | AD7: =IF(AF4="NO",0,'Calculation Sheet'!D20) -> 0
AC8: VONTH (CC) (V) | AD8: ='Calculation Sheet'!D19 -> 3
AC9: PLOAD (STARTUP) (W) | AD9: =IF(AF4="NO",0,'Calculation Sheet'!D22) -> 0
AC10: VONTH (CP) (V) | AD10: ='Calculation Sheet'!D21 -> 8
AC11: TSTARTUP (ms) | AD11: =Tchg_dvdt -> 10.90909091
B12: CTS sensor temp | F12: TS sensor temp | AC12: SLEW RATE (mV/µs) | AD12: =Vcc_max/Tchg_dvdt -> 1.375
B13: τ (s) | C13: R (Ω) | D13: C (F) | F13: τ (s) | G13: R (Ω) | H13: C (F) | AC13: IINRUSH (A) | AD13: =IF('Calculation Sheet'!D69="TRUE",Ilimit_final,Icharge/1000) -> 0.001375
B14: 0.00455355421 | C14: 0.4817344773 | D14: =B14/C14 -> 0.009452415022 | F14: 0.002059136407 | G14: 0.9020323785 | H14: =F14/G14 -> 0.002282774383
B15: 0.004553589382 | C15: 0.2582470642 | D15: 0.01763268596 | F15: 4.844920828e-05 | G15: 0.2231247024 | H15: 0.0002171395984
B16: 0.004493981307 | C16: 0.007691155651 | D16: 0.5843050786 | F16: 0.000352988209 | G16: 0.6616406408 | H16: 0.000533504424
B17: 0.03 | C17: 2.937147394 | D17: 0.01021399201 | F17: 0.001958800571 | G17: 0.7004425598 | H17: 0.002796518492
B18: 0.03 | C18: 2.465474457 | D18: 0.01216804332 | F18: 0.001997375776 | G18: 0.01641406054 | H18: 0.1216868776
B19: 0.03 | C19: 1.814822106 | D19: 0.01653054583 | F19: 0.03 | G19: 0.07972086493 | H19: 0.376313027
B20: 0.03 | C20: 1.393333328 | D20: 0.02153110057 | F20: 0.03 | G20: 2.014533617 | H20: 0.01489178425
F21: 0.03 | G21: 4.237623926 | H21: 0.007079438979
F22: 0.03 | G22: 3.426160656 | H22: 0.008756156823
A26: SERIAL NO. | B26: TIME (ms) | C26: VOUT (V) | D26: P_INRUSH (W) | E26: HFET τ1 | F26: HFET τ2 | G26: HFET τ3 | H26: HFET τ4 | I26: HFET τ5 | J26: HFET τ6 | K26: HFET τ7 | L26: HFET τ8 | M26: HFET τ9 | P26: HFET TEMPERATURE (⁰C) | Q26: CONTROLLER τ1 | R26: CONTROLLER τ2 | S26: CONTROLLER τ3 | T26: CONTROLLER τ4 | U26: CONTROLLER τ5 | V26: CONTROLLER τ6 | W26: CONTROLLER τ7 | Z26: CONTROLLER TEMPERATURE (⁰C) | AC26: ICR | AD26: ICC | AE26: ICP | AF26: FET-cont temp
A27: 0 | B27: =($AD$11/2000)*(A27) -> 0 | C27: =$AD$13*B27*10^-3/($AD$4*10^-6) -> 0 | D27: =(Vcc_max-C27)*($AD$13+IF(C27>=$AD$8,$AD$7,0)+(IF(C27>=$AD$6,C27,0)/$AD$5)+IF(C27>$AD$10,($AD$9/C27),0)) -> 0.020625 | E27: 0 | F27: 0 | G27: 0 | H27: 0 | I27: 0 | J27: 0 | K27: 0 | L27: 0 | M27: 0 | P27: =$C$6 -> 25 | Q27: 0 | R27: 0 | S27: 0 | T27: 0 | U27: 0 | V27: 0 | W27: 0 | Z27: =$C$6 -> 25 | AC27: =IF(C27>=$AD$6,C27,0)/$AD$5 -> 0 | AD27: =IF(C27>=$AD$8,$AD$7,0) -> 0 | AE27: =IF(C27>$AD$10,($AD$9/C27),0) -> 0 | AF27: =(P27-Z27)*IF((Vcc_max-C27)>$F$4,1,0) -> 0
A28: 1 | B28: 0.005454545455 | C28: 0.0075 | D28: =IF(OR(P27>=160,AF27>=60,D27=0),0, (Vcc_max-C28)*($AD$13+IF(C28>=$AD$8,$AD$7,0)+(IF(C28>=$AD$6,C28,0)/$AD$5)+IF(C28>$AD$10,($AD$9/C28),0))) -> 0.0580959375 | E28: =(D27+((((EXP(-(B28-B27)*10^-3/$F$14)))*(E27-D27)))) -> 5.456225619e-05 | F28: =(D27+((((EXP(-(B28-B27)*10^-3/$F$15)))*(F27-D27)))) -> 0.002196079906 | G28: =(D27+((((EXP(-(B28-B27)*10^-3/$F$16)))*(G27-D27)))) -> 0.0003162577522 | H28: =(D27+((((EXP(-(B28-B27)*10^-3/$F$17)))*(H27-D27)))) -> 5.735321463e-05 | I28: =(D27+((((EXP(-(B28-B27)*10^-3/$F$18)))*(I27-D27)))) -> 5.6247067e-05 | J28: =(D27+((((EXP(-(B28-B27)*10^-3/$F$19)))*(JW27-D27)))) -> 3.749659112e-06 | K28: =(D27+((((EXP(-(B28-B27)*10^-3/$F$20)))*(K27-D27)))) -> 3.749659112e-06 | L28: =(D27+((((EXP(-(B28-B27)*10^-3/$F$21)))*(L27-D27)))) -> 3.749659112e-06 | M28: =(D27+((((EXP(-(B28-B27)*10^-3/$F$22)))*(M27-D27)))) -> 3.749659112e-06 | P28: =$C$6+(E28*$G$14)+(F28*$G$15)+(G28*$G$16)+(H28*$G$17)+(I28*$G$18)+(J28*$G$19)+(K28*$G$20)+(L28*$G$21)+(M28*$G$22) -> 25.00082615 | Q28: =(D27+((((EXP(-(B28-B27)*10^-3/$B$14)))*(Q27-D27)))) -> 2.469118446e-05 | R28: =(D27+((((EXP(-(B28-B27)*10^-3/$B$15)))*(R27-D27)))) -> 2.469099386e-05 | S28: =(D27+((((EXP(-(B28-B27)*10^-3/$B$16)))*(S27-D27)))) -> 2.501829598e-05 | T28: =(D27+((((EXP(-(B28-B27)*10^-3/$B$17)))*(T27-D27)))) -> 3.749659112e-06 | U28: =(D27+((((EXP(-(B28-B27)*10^-3/$B$18)))*(U27-D27)))) -> 3.749659112e-06 | V28: =(D27+((((EXP(-(B28-B27)*10^-3/$B$19)))*(V27-D27)))) -> 3.749659112e-06 | W28: =(D27+((((EXP(-(B28-B27)*10^-3/$B$20)))*(W27-D27)))) -> 3.749659112e-06 | Z28: =$C$6+(Q28*$C$14)+(R28*$C$15)+(S28*$C$16)+(T28*$C$17)+(U28*$C$18)+(V28*$C$19)+(W28*$C$20) -> 25.00005075 | AC28: 0.0025 | AD28: 0 | AE28: 0 | AF28: 0.0007753999037
A29: 2 | B29: 0.01090909091 | C29: 0.015 | D29: 0.095529375 | E29: 0.0002081073901 | F29: 0.008148106766 | G29: 0.001202234559 | H29: 0.0002187446998 | I29: 0.0002145288782 | J29: 1.056193752e-05 | K29: 1.431091494e-05 | L29: 1.431091494e-05 | M29: 1.431091494e-05 | P29: =$C$6+(E29*$G$14)+(F29*$G$15)+(G29*$G$16)+(H29*$G$17)+(I29*$G$18)+(J29*$G$19)+(K29*$G$20)+(L29*$G$21)+(M29*$G$22) -> 25.0030973 | Q29: 9.421108046e-05 | R29: 9.421035342e-05 | S29: 9.545880239e-05 | T29: 1.431091494e-05 | U29: 1.431091494e-05 | V29: =(D28+((((EXP(-(B29-B28)*10^-3/$B$19)))*(V28-D28)))) -> 1.431091494e-05 | W29: =(D28+((((EXP(-(B29-B28)*10^-3/$B$20)))*(W28-D28)))) -> 1.431091494e-05 | Z29: =$C$6+(Q29*$C$14)+(R29*$C$15)+(S29*$C$16)+(T29*$C$17)+(U29*$C$18)+(V29*$C$19)+(W29*$C$20) -> 25.00019368 | AC29: 0.005 | AD29: 0 | AE29: 0 | AF29: 0.002903621166
A30: 3 | B30: 0.01636363636 | C30: 0.0225 | D30: 0.1329253125 | E30: 0.000460274344 | F30: 0.01745216724 | G30: 0.0026486195 | H30: 0.0004837808712 | I30: 0.0004744649042 | J30: 1.736739837e-05 | K30: 3.167571156e-05 | L30: 3.167571156e-05 | M30: 3.167571156e-05 | P30: 25.00671623 | Q30: 0.0002084611283 | R30: 0.0002084595202 | S30: 0.0002112209339 | T30: 3.167571156e-05 | U30: 3.167571156e-05 | V30: 3.167571156e-05 | W30: 3.167571156e-05 | Z30: 25.00042863 | AC30: 0.0075 | AD30: 0 | AE30: 0 | AF30: 0.006287593052
A31: 4 | B31: 0.02181818182 | C31: 0.03 | D31: 0.17028375 | E31: 0.0008107030154 | F31: 0.02974735531 | G31: 0.004646244426 | H31: 0.0008520692392 | I31: 0.0008356756533 | J31: 2.416604166e-05 | K31: 5.583599452e-05 | L31: 5.583599452e-05 | M31: 5.583599452e-05 | P31: 25.01159566 | Q31: 0.0003673428863 | R31: 0.0003673400536 | S31: 0.0003722042272 | T31: 5.583599452e-05 | U31: 5.583599452e-05 | V31: 5.583599452e-05 | W31: 5.583599452e-05 | Z31: 25.00075548 | AC31: 0.01 | AD31: 0 | AE31: 0 | AF31: 0.01084018154
A32: 5 | B32: 0.02727272727 | C32: 0.0375 | D32: 0.2076046875 | E32: 0.001259034255 | F32: 0.044711193 | G32: 0.007186081768 | H32: 0.001323218405 | I32: 0.001297782669 | J32: 3.095786738e-05 | K32: 8.678371083e-05 | L32: 8.678371083e-05 | M32: 8.678371083e-05 | P32: 25.01765699 | Q32: 0.0005707580306 | R32: 0.0005707536311 | S32: 0.0005783083407 | T32: 8.678371083e-05 | U32: 8.678371083e-05 | V32: 8.678371083e-05 | W32: 8.678371083e-05 | Z32: 25.00117407 | AC32: 0.0125 | AD32: 0 | AE32: 0 | AF32: 0.01648292143
A33: 6 | B33: 0.03272727273 | C33: 0.045 | D33: 0.244888125 | E33: 0.001804909862 | F33: 0.0620555387 | G33: 0.01025924239 | H33: 0.00189683806 | I33: 0.001860408526 | J33: 3.774287554e-05 | K33: 0.0001245108089 | L33: 0.0001245108089 | M33: 0.0001245108089 | P33: 25.02482937 | Q33: 0.0008186083551 | R33: 0.0008186020476 | S33: 0.0008294330549 | T33: 0.0001245108089 | U33: 0.0001245108089 | V33: 0.0001245108089 | W33: 0.0001245108089 | Z33: 25.00168427 | AC33: 0.015 | AD33: 0 | AE33: 0 | AF33: 0.02314510195
A34: 7 | B34: 0.03818181818 | C34: 0.0525 | D34: 0.2821340625 | E34: 0.002447972585 | F34: 0.08152293113 | G34: 0.01385697344 | H34: 0.002572538978 | I34: 0.002523176829 | J34: 4.452106614e-05 | K34: 0.0001690092388 | L34: 0.0001690092388 | M34: 0.0001690092388 | P34: 25.03304887 | Q34: 0.001110795771 | R34: 0.001110787216 | S34: 0.001125478272 | T34: 0.0001690092388 | U34: 0.0001690092388 | V34: 0.0001690092388 | W34: 0.0001690092388 | Z34: 25.00228592 | AC34: 0.0175 | AD34: 0 | AE34: 0 | AF34: 0.03076294958
A35: 8 | B35: 0.04363636364 | C35: 0.06 | D35: 0.3193425 | E35: 0.003187866116 | F35: 0.1028833226 | G35: 0.01797065631 | H35: 0.003349933017 | I35: 0.003285712209 | J35: 5.129243918e-05 | K35: 0.0002202709518 | L35: 0.0002202709518 | M35: 0.0002202709518 | P35: 25.04225779 | Q35: 0.001447222308 | R35: 0.001447211166 | S35: 0.001466344014 | T35: 0.0002202709518 | U35: 0.0002202709518 | V35: 0.0002202709518 | W35: 0.0002202709518 | Z35: 25.0029789 | AC35: 0.02 | AD35: 0 | AE35: 0 | AF35: 0.03927889783
A36: 9 | B36: 0.04909090909 | C36: 0.0675 | D36: 0.3565134375 | E36: 0.004024235092 | F36: 0.1259311602 | G36: 0.02259180452 | H36: 0.004228633115 | I36: 0.004147640322 | J36: 5.805699466e-05 | K36: 0.0002782879009 | L36: 0.0002782879009 | M36: 0.0002782879009 | P36: 25.05240398 | Q36: 0.001827790111 | R36: 0.001827776044 | S36: 0.001851930426 | T36: 0.0002782879009 | U36: 0.0002782879009 | V36: 0.0002782879009 | W36: 0.0002782879009 | Z36: 25.00376305 | AC36: 0.0225 | AD36: 0 | AE36: 0 | AF36: 0.04864093452
A37: 10 | B37: 0.05454545455 | C37: 0.075 | D37: 0.393646875 | E37: 0.004956725088 | F37: 0.1504827774 | G37: 0.02771206174 | H37: 0.005208253284 | I37: 0.005108587842 | J37: 6.481473257e-05 | K37: 0.0003430520403 | L37: 0.0003430520403 | M37: 0.0003430520403 | P37: 25.06344025 | Q37: 0.002252401444 | R37: 0.002252384117 | S37: 0.002282137774 | T37: 0.0003430520403 | U37: 0.0003430520403 | V37: 0.0003430520403 | W37: 0.0003430520403 | Z37: 25.00463823 | AC37: 0.025 | AD37: 0 | AE37: 0 | AF37: 0.05880201856
A38: 11 | B38: 0.06 | C38: 0.0825 | D38: 0.4307428125 | E38: 0.005984982618 | F38: 0.1763740642 | G38: 0.03332319975 | H38: 0.006288408612 | I38: 0.006168182463 | J38: 7.156565293e-05 | K38: 0.0004145553257 | L38: 0.0004145553257 | M38: 0.0004145553257 | P38: 25.07532386 | Q38: 0.002720958688 | R38: 0.002720937764 | S38: 0.002756866445 | T38: 0.0004145553257 | U38: 0.0004145553257 | V38: 0.0004145553257 | W38: 0.0004145553257 | Z38: 25.0056043 | AC38: 0.0275 | AD38: 0 | AE38: 0 | AF38: 0.06971955863
A39: 12 | B39: 0.06545454545 | C39: 0.09 | D39: 0.46780125 | E39: 0.007108655128 | F39: 0.203458384 | G39: 0.03941711652 | H39: 0.007468715256 | I39: 0.007326052896 | J39: 7.830975572e-05 | K39: 0.0004927897146 | L39: 0.0004927897146 | M39: 0.0004927897146 | P39: 25.08801607 | Q39: 0.003233364338 | R39: 0.003233339484 | S39: 0.003276016946 | T39: 0.0004927897146 | U39: 0.0004927897146 | V39: 0.0004927897146 | W39: 0.0004927897146 | Z39: 25.00666112 | AC39: 0.03 | AD39: 0 | AE39: 0 | AF39: 0.08135494726
A40: 13 | B40: 0.07090909091 | C40: 0.0975 | D40: 0.5048221875 | E40: 0.008327391002 | F40: 0.231604714 | G40: 0.04598583425 | H40: 0.00874879044 | I40: 0.00858182886 | J40: 8.504704094e-05 | K40: 0.0005777471656 | L40: 0.0005777471656 | M40: 0.0005777471656 | P40: 25.10148169 | Q40: 0.003789521011 | R40: 0.003789491892 | S40: 0.003839489904 | T40: 0.0005777471656 | U40: 0.0005777471656 | V40: 0.0005777471656 | W40: 0.0005777471656 | Z40: 25.00780855 | AC40: 0.0325 | AD40: 0 | AE40: 0 | AF40: 0.09367314444
A41: 14 | B41: 0.07636363636 | C41: 0.105 | D41: 0.541805625 | E41: 0.009640839549 | F41: 0.2606959821 | G41: 0.05302149746 | H41: 0.01012825245 | I41: 0.009935141088 | J41: 9.177750861e-05 | K41: 0.0006694196388 | L41: 0.0006694196388 | M41: 0.0006694196388 | P41: 25.11568875 | Q41: 0.004389331434 | R41: 0.004389297721 | S41: 0.00444718607 | T41: 0.0006694196388 | U41: 0.0006694196388 | V41: 0.0006694196388 | W41: 0.0006694196388 | Z41: 25.00904644 | AC41: 0.035 | AD41: 0 | AE41: 0 | AF41: 0.1066423054
A42: 15 | B42: 0.08181818182 | C42: 0.1125 | D42: 0.5787515625 | E42: 0.01104865101 | F42: 0.2906275815 | G42: 0.06051637113 | H42: 0.01160672064 | I42: 0.01138562132 | J42: 9.850115871e-05 | K42: 0.0007677990959 | L42: 0.0007677990959 | M42: 0.0007677990959 | P42: 25.13060811 | Q42: 0.005032698457 | R42: 0.005032659817 | S42: 0.005099006311 | T42: 0.0007677990959 | U42: 0.0007677990959 | V42: 0.0007677990959 | W42: 0.0007677990959 | Z42: 25.01037466 | AC42: 0.0375 | AD42: 0 | AE42: 0 | AF42: 0.1202334479
A43: 16 | B43: 0.08727272727 | C43: 0.12 | D43: 0.61566 | E43: 0.01255047655 | F43: 0.3213060438 | G43: 0.06846283885 | H43: 0.01318381542 | I43: 0.01293290229 | J43: 0.0001052179913 | K43: 0.0008728775 | L43: 0.0008728775 | M43: 0.0008728775 | P43: 25.14621321 | Q43: 0.005719525041 | R43: 0.005719481146 | S43: 0.005794851617 | T43: 0.0008728775 | U43: 0.0008728775 | V43: 0.0008728775 | W43: 0.0008728775 | Z43: 25.01179305 | AC43: 0.04 | AD43: 0 | AE43: 0 | AF43: 0.1344201548
A44: 17 | B44: 0.09272727273 | C44: 0.1275 | D44: 0.6525309375 | E44: 0.01414596825 | F44: 0.3526478527 | G44: 0.07685340099 | H44: 0.01485915826 | I44: 0.01457661776 | J44: 0.0001119280062 | K44: 0.0009846468157 | L44: 0.0009846468157 | M44: 0.0009846468157 | P44: 25.1624798 | Q44: 0.006449714267 | R44: 0.006449664787 | S44: 0.006534623098 | T44: 0.0009846468157 | U44: 0.0009846468157 | V44: 0.0009846468157 | W44: 0.0009846468157 | Z44: 25.01330149 | AC44: 0.0425 | AD44: 0 | AE44: 0 | AF44: 0.1491783086
A45: 18 | B45: 0.09818181818 | C45: 0.135 | D45: 0.689364375 | E45: 0.01583477912 | F45: 0.3845783844 | G45: 0.08568067293 | H45: 0.01663237166 | I45: 0.01631640245 | J45: 0.0001186312037 | K45: 0.001103099009 | L45: 0.001103099009 | M45: 0.001103099009 | P45: 25.17938568 | Q45: 0.007223169329 | R45: 0.007223113938 | S45: 0.007318221982 | T45: 0.001103099009 | U45: 0.001103099009 | V45: 0.001103099009 | W45: 0.001103099009 | Z45: 25.01489982 | AC45: 0.045 | AD45: 0 | AE45: 0 | AF45: 0.1644858532
A46: 19 | B46: 0.1036363636 | C46: 0.1425 | D46: 0.7261603125 | E46: 0.01761656309 | F46: 0.4170309609 | G46: 0.09493738326 | H46: 0.0185030792 | I46: 0.01815189212 | J46: 0.0001253275835 | K46: 0.001228226047 | L46: 0.001228226047 | M46: 0.001228226047 | P46: 25.19691049 | Q46: 0.00803979354 | R46: 0.008039731911 | S46: 0.00814554962 | T46: 0.001228226047 | U46: 0.001228226047 | V46: 0.001228226047 | W46: 0.001228226047 | Z46: 25.01658791 | AC46: 0.0475 | AD46: 0 | AE46: 0 | AF46: 0.1803225821
A47: 20 | B47: 0.1090909091 | C47: 0.15 | D47: 0.76291875 | E47: 0.019490975 | F47: 0.4499460036 | G47: 0.1046163721 | H47: 0.02047090549 | I47: 0.02008272349 | J47: 0.0001320171458 | K47: 0.001360019899 | L47: 0.001360019899 | M47: 0.001360019899 | P47: 25.21503556 | Q47: 0.008899490325 | R47: 0.008899422134 | S47: 0.00901650748 | T47: 0.001360019899 | U47: 0.001360019899 | V47: 0.001360019899 | W47: 0.001360019899 | Z47: 25.01836562 | AC47: 0.05 | AD47: 0 | AE47: 0 | AF47: 0.1966699477
A48: 21 | B48: 0.1145454545 | C48: 0.1575 | D48: 0.7996396875 | E48: 0.02145767059 | F48: 0.483270278 | G48: 0.1147105893 | H48: 0.02253547618 | I48: 0.02210853429 | J48: 0.0001386998905 | K48: 0.001498472536 | L48: 0.001498472536 | M48: 0.001498472536 | P48: 25.23374369 | Q48: 0.009802163229 | R48: 0.009802088151 | S48: 0.00993099715 | T48: 0.001498472536 | U48: 0.001498472536 | V48: 0.001498472536 | W48: 0.001498472536 | Z48: 25.02023279 | AC48: 0.0525 | AD48: 0 | AE48: 0 | AF48: 0.2135108926
A49: 22 | B49: 0.12 | C49: 0.165 | D49: 0.836323125 | E49: 0.02351630655 | F49: 0.5169562176 | G49: 0.1252130929 | H49: 0.02469641798 | I49: 0.02422896323 | J49: 0.0001453758177 | K49: 0.001643575929 | L49: 0.001643575929 | M49: 0.001643575929 | P49: 25.253019 | Q49: 0.01074771591 | R49: 0.01074763362 | S49: 0.01088892034 | T49: 0.001643575929 | U49: 0.001643575929 | V49: 0.001643575929 | W49: 0.001643575929 | Z49: 25.0221893 | AC49: 0.055 | AD49: 0 | AE49: 0 | AF49: 0.2308296966
A50: 23 | B50: 0.1254545455 | C50: 0.1725 | D50: 0.8729690625 | E50: 0.02566654043 | F50: 0.5509613205 | G50: 0.1361170474 | H50: 0.02695335862 | I50: 0.02644365001 | J50: 0.0001520449273 | K50: 0.001795322052 | L50: 0.001795322052 | M50: 0.001795322052 | P50: 25.27284685 | Q50: 0.01173605214 | R50: 0.01173596232 | S50: 0.01189017887 | T50: 0.001795322052 | U50: 0.001795322052 | V50: 0.001795322052 | W50: 0.001795322052 | Z50: 25.02423501 | AC50: 0.0575 | AD50: 0 | AE50: 0 | AF50: 0.2486118418
A51: 24 | B51: 0.1309090909 | C51: 0.18 | D51: 0.9095775 | E51: 0.02790803073 | F51: 0.5852476105 | G51: 0.1474157219 | H51: 0.02930592688 | I51: 0.0287522353 | J51: 0.0001587072194 | K51: 0.001953702878 | L51: 0.001953702878 | M51: 0.001953702878 | P51: 25.29321365 | Q51: 0.0127670758 | R51: 0.01276697813 | S51: 0.0129346747 | T51: 0.001953702878 | U51: 0.001953702878 | V51: 0.001953702878 | W51: 0.001953702878 | Z51: 25.02636976 | AC51: 0.06 | AD51: 0 | AE51: 0 | AF51: 0.2668438906
A52: 25 | B52: 0.1363636364 | C52: 0.1875 | D52: 0.9461484375 | E52: 0.03024043681 | F52: 0.6197811549 | G52: 0.159102489 | H52: 0.03175375255 | I52: 0.03115436076 | J52: 0.0001653626938 | K52: 0.002118710386 | L52: 0.002118710386 | M52: 0.002118710386 | P52: 25.3141068 | Q52: 0.01384069091 | R52: 0.01384058507 | S52: 0.01402230988 | T52: 0.002118710386 | U52: 0.002118710386 | V52: 0.002118710386 | W52: 0.002118710386 | Z52: 25.02859342 | AC52: 0.0625 | AD52: 0 | AE52: 0 | AF52: 0.2855133776
A53: 26 | B53: 0.1418181818 | C53: 0.195 | D53: 0.982681875 | E53: 0.03266341897 | F53: 0.654531634 | G53: 0.1711708227 | H53: 0.03429646647 | I53: 0.03364966904 | J53: 0.0001720113508 | K53: 0.002290336552 | L53: 0.002290336552 | M53: 0.002290336552 | P53: 25.33551456 | Q53: 0.01495680158 | R53: 0.01495668725 | S53: 0.0151529866 | T53: 0.002290336552 | U53: 0.002290336552 | V53: 0.002290336552 | W53: 0.002290336552 | Z53: 25.03090585 | AC53: 0.065 | AD53: 0 | AE53: 0 | AF53: 0.3046087122
A54: 27 | B54: 0.1472727273 | C54: 0.2025 | D54: 1.019177812 | E54: 0.03517663838 | F54: 0.6894719564 | G54: 0.1836142971 | H54: 0.0369337005 | I54: 0.03623780373 | J54: 0.0001786531901 | K54: 0.002468573355 | L54: 0.002468573355 | M54: 0.002468573355 | P54: 25.357426 | Q54: 0.01611531204 | R54: 0.01611518891 | S54: 0.01632660716 | T54: 0.002468573355 | U54: 0.002468573355 | V54: 0.002468573355 | W54: 0.002468573355 | Z54: 25.03330691 | AC54: 0.0675 | AD54: 0 | AE54: 0 | AF54: 0.3241190917
A55: 28 | B55: 0.1527272727 | C55: 0.21 | D55: 1.05563625 | E55: 0.03777975713 | F55: 0.7245779155 | G55: 0.1964265851 | H55: 0.03966508752 | I55: 0.03891840943 | J55: 0.0001852882119 | K55: 0.002653412776 | L55: 0.002653412776 | M55: 0.002653412776 | P55: 25.37983088 | Q55: 0.01731612665 | R55: 0.01731599439 | S55: 0.01754307398 | T55: 0.002653412776 | U55: 0.002653412776 | V55: 0.002653412776 | W55: 0.002653412776 | Z55: 25.03579645 | AC55: 0.07 | AD55: 0 | AE55: 0 | AF55: 0.3440344238
A56: 29 | B56: 0.1581818182 | C56: 0.2175 | D56: 1.092057188 | E56: 0.04047243818 | F56: 0.7598278818 | G56: 0.2096014563 | H56: 0.04249026144 | I56: 0.04169113168 | J56: 0.0001919164162 | K56: 0.002844846797 | L56: 0.002844846797 | M56: 0.002844846797 | P56: 25.4027196 | Q56: 0.01855914986 | R56: 0.01855900816 | S56: 0.01880228961 | T56: 0.002844846797 | U56: 0.002844846797 | V56: 0.002844846797 | W56: 0.002844846797 | Z56: 25.03837435 | AC56: 0.0725 | AD56: 0 | AE56: 0 | AF56: 0.3643452568
A57: 30 | B57: 0.1636363636 | C57: 0.225 | D57: 1.128440625 | E57: 0.0432543454 | F57: 0.7952025292 | G57: 0.2231327758 | H57: 0.04540885719 | I57: 0.04455561701 | J57: 0.0001985378028 | K57: 0.003042867402 | L57: 0.003042867402 | M57: 0.003042867402 | P57: 25.42608316 | Q57: 0.01984428625 | R57: 0.0198441348 | S57: 0.0201041567 | T57: 0.003042867402 | U57: 0.003042867402 | V57: 0.003042867402 | W57: 0.003042867402 | Z57: 25.04104044 | AC57: 0.075 | AD57: 0 | AE57: 0 | AF57: 0.3850427177
A58: 31 | B58: 0.1690909091 | C58: 0.2325 | D58: 1.164786563 | E58: 0.04612514355 | F58: 0.8306845891 | G58: 0.2370145031 | H58: 0.04842051069 | I58: 0.0475115129 | J58: 0.0002051523719 | K58: 0.003247466576 | L58: 0.003247466576 | M58: 0.003247466576 | P58: 25.44991307 | Q58: 0.02117144051 | R58: 0.021171279 | S58: 0.02144857803 | T58: 0.003247466576 | U58: 0.003247466576 | V58: 0.003247466576 | W58: 0.003247466576 | Z58: 25.04379461 | AC58: 0.0775 | AD58: 0 | AE58: 0 | AF58: 0.4061184563
A59: 32 | B59: 0.1745454545 | C59: 0.24 | D59: 1.201095 | E59: 0.04908449826 | F59: 0.8662586318 | G59: 0.2512406901 | H59: 0.05152485889 | I59: 0.05055846779 | J59: 0.0002117601235 | K59: 0.003458636305 | L59: 0.003458636305 | M59: 0.003458636305 | P59: 25.4742013 | Q59: 0.02254051746 | R59: 0.02254034557 | S59: 0.02283545648 | T59: 0.003458636305 | U59: 0.003458636305 | V59: 0.003458636305 | W59: 0.003458636305 | Z59: 25.0466367 | AC59: 0.08 | AD59: 0 | AE59: 0 | AF59: 0.4275645951
A60: 33 | B60: 0.18 | C60: 0.2475 | D60: 1.237365938 | E60: 0.05213207606 | F60: 0.9019108704 | G60: 0.2658054798 | H60: 0.05472153977 | I60: 0.05369613108 | J60: 0.0002183610575 | K60: 0.003676368576 | L60: 0.003676368576 | M60: 0.003676368576 | P60: 25.49894026 | Q60: 0.023951422 | R60: 0.02395123942 | S60: 0.02426469507 | T60: 0.003676368576 | U60: 0.003676368576 | V60: 0.003676368576 | W60: 0.003676368576 | Z60: 25.04956658 | AC60: 0.0825 | AD60: 0 | AE60: 0 | AF60: 0.4493736853
A61: 34 | B61: 0.1854545455 | C61: 0.255 | D61: 1.273599375 | E61: 0.05526754436 | F61: 0.9376289859 | G61: 0.2807031054 | H61: 0.05801019228 | I61: 0.05692415314 | J61: 0.0002249551739 | K61: 0.00390065538 | L61: 0.00390065538 | M61: 0.00390065538 | P61: 25.52412277 | Q61: 0.02540405917 | R61: 0.0254038656 | S61: 0.02573619694 | T61: 0.00390065538 | U61: 0.00390065538 | V61: 0.00390065538 | W61: 0.00390065538 | Z61: 25.0525841 | AC61: 0.085 | AD61: 0 | AE61: 0 | AF61: 0.4715386664
A62: 35 | B62: 0.1909090909 | C62: 0.2625 | D62: 1.309795313 | E62: 0.05849057144 | F62: 0.9734019711 | G62: 0.295927888 | H62: 0.06139045639 | I62: 0.06024218527 | J62: 0.0002315424728 | K62: 0.004131488707 | L62: 0.004131488707 | M62: 0.004131488707 | P62: 25.54974196 | Q62: 0.02689833411 | R62: 0.02689812924 | S62: 0.02724986532 | T62: 0.004131488707 | U62: 0.004131488707 | V62: 0.004131488707 | W62: 0.004131488707 | Z62: 25.05568913 | AC62: 0.0875 | AD62: 0 | AE62: 0 | AF62: 0.4940528304
A63: 36 | B63: 0.1963636364 | C63: 0.27 | D63: 1.34595375 | E63: 0.06180082646 | F63: 1.009219991 | G63: 0.3114742363 | H63: 0.06486197307 | I63: 0.06364987974 | J63: 0.0002381229541 | K63: 0.00436886055 | L63: 0.00436886055 | M63: 0.00436886055 | P63: 25.57579132 | Q63: 0.0284341521 | R63: 0.02843393562 | S63: 0.02880560358 | T63: 0.00436886055 | U63: 0.00436886055 | V63: 0.00436886055 | W63: 0.00436886055 | Z63: 25.05888153 | AC63: 0.09 | AD63: 0 | AE63: 0 | AF63: 0.5169097899
A64: 37 | B64: 0.2018181818 | C64: 0.2775 | D64: 1.382074688 | E64: 0.06519797947 | F64: 1.045074257 | G64: 0.3273366443 | H64: 0.0684243843 | I64: 0.06714688976 | J64: 0.0002446966178 | K64: 0.004612762902 | L64: 0.004612762902 | M64: 0.004612762902 | P64: 25.6022646 | Q64: 0.03001141849 | R64: 0.0300111901 | S64: 0.0304033152 | T64: 0.004612762902 | U64: 0.004612762902 | V64: 0.004612762902 | W64: 0.004612762902 | Z64: 25.06216115 | AC64: 0.0925 | AD64: 0 | AE64: 0 | AF64: 0.5401034494
A65: 38 | B65: 0.2072727273 | C65: 0.285 | D65: 1.418158125 | E65: 0.06868170138 | F65: 1.080956918 | G65: 0.3435096907 | H65: 0.07207733305 | I65: 0.07073286949 | J65: 0.000251263464 | K65: 0.004863187758 | L65: 0.004863187758 | M65: 0.004863187758 | P65: 25.62915584 | Q65: 0.03163003879 | R65: 0.03162979817 | S65: 0.03204290378 | T65: 0.004863187758 | U65: 0.004863187758 | V65: 0.004863187758 | W65: 0.004863187758 | Z65: 25.06552786 | AC65: 0.095 | AD65: 0 | AE65: 0 | AF65: 0.5636279794
A66: 39 | B66: 0.2127272727 | C66: 0.2925 | D66: 1.454204062 | E66: 0.07225166396 | F66: 1.116860956 | G66: 0.3599880373 | H66: 0.07582046326 | I66: 0.07440747403 | J66: 0.0002578234926 | K66: 0.005120127115 | L66: 0.005120127115 | M66: 0.005120127115 | P66: 25.65645931 | Q66: 0.03328991858 | R66: 0.03328966544 | S66: 0.03372427303 | T66: 0.005120127115 | U66: 0.005120127115 | V66: 0.005120127115 | W66: 0.005120127115 | Z66: 25.06898151 | AC66: 0.0975 | AD66: 0 | AE66: 0 | AF66: 0.5874777932
A67: 40 | B67: 0.2181818182 | C67: 0.3 | D67: 1.4902125 | E67: 0.07590753988 | F67: 1.152780104 | G67: 0.3767664276 | H67: 0.07965341988 | I67: 0.07817035942 | J67: 0.0002643767037 | K67: 0.005383572971 | L67: 0.005383572971 | M67: 0.005383572971 | P67: 25.6841695 | Q67: 0.03499096359 | R67: 0.03499069762 | S67: 0.03544732679 | T67: 0.005383572971 | U67: 0.005383572971 | V67: 0.005383572971 | W67: 0.005383572971 | Z67: 25.07252198 | AC67: 0.1 | AD67: 0 | AE67: 0 | AF67: 0.6116475267
A68: 41 | B68: 0.2236363636 | C68: 0.3075 | D68: 1.526183438 | E68: 0.07964900265 | F68: 1.188708759 | G68: 0.3938396859 | H68: 0.08357584886 | I68: 0.08202118264 | J68: 0.0002709230972 | K68: 0.005653517326 | L68: 0.005653517326 | M68: 0.005653517326 | P68: 25.71228113 | Q68: 0.03673307963 | R68: 0.03673280053 | S68: 0.03721196901 | T68: 0.005653517326 | U68: 0.005653517326 | V68: 0.005653517326 | W68: 0.005653517326 | Z68: 25.07614911 | AC68: 0.1025 | AD68: 0 | AE68: 0 | AF68: 0.6361320191
A69: 42 | B69: 0.2290909091 | C69: 0.315 | D69: 1.562116875 | E69: 0.08347572664 | F69: 1.224641915 | G69: 0.4112027157 | H69: 0.08758739711 | I69: 0.0859596016 | J69: 0.0002774626731 | K69: 0.00592995218 | L69: 0.00592995218 | M69: 0.00592995218 | P69: 25.74078907 | Q69: 0.03851617265 | R69: 0.03851588012 | S69: 0.03901810374 | T69: 0.00592995218 | U69: 0.00592995218 | V69: 0.00592995218 | W69: 0.00592995218 | Z69: 25.07986277 | AC69: 0.105 | AD69: 0 | AE69: 0 | AF69: 0.6609262969
A70: 43 | B70: 0.2345454545 | C70: 0.3225 | D70: 1.598012812 | E70: 0.08738738711 | F70: 1.260575102 | G70: 0.4288504988 | H70: 0.09168771253 | I70: 0.08998527516 | J70: 0.0002839954315 | K70: 0.006212869536 | L70: 0.006212869536 | M70: 0.006212869536 | P70: 25.76968838 | Q70: 0.0403401487 | R70: 0.04033984244 | S70: 0.04086563518 | T70: 0.006212869536 | U70: 0.006212869536 | V70: 0.006212869536 | W70: 0.006212869536 | Z70: 25.08366283 | AC70: 0.1075 | AD70: 0 | AE70: 0 | AF70: 0.6860255584
A71: 44 | B71: 0.24 | C71: 0.33 | D71: 1.63387125 | E71: 0.09138366015 | F71: 1.296504323 | G71: 0.4467780937 | H71: 0.09587644401 | I71: 0.09409786308 | J71: 0.0002905213723 | K71: 0.006502261399 | L71: 0.006502261399 | M71: 0.006502261399 | P71: 25.79897429 | Q71: 0.04220491394 | R71: 0.04220459365 | S71: 0.04275446761 | T71: 0.006502261399 | U71: 0.006502261399 | V71: 0.006502261399 | W71: 0.006502261399 | Z71: 25.08754913 | AC71: 0.11 | AD71: 0 | AE71: 0 | AF71: 0.7114251605
A72: 45 | B72: 0.2454545455 | C72: 0.3375 | D72: 1.669692187 | E72: 0.09546422273 | F72: 1.332426007 | G72: 0.4649806349 | H72: 0.1001532414 | I72: 0.09829702608 | J72: 0.0002970404955 | K72: 0.006798119772 | L72: 0.006798119772 | M72: 0.006798119772 | P72: 25.82864215 | Q72: 0.04411037465 | R72: 0.04411004003 | S72: 0.04468450546 | T72: 0.006798119772 | U72: 0.006798119772 | V72: 0.006798119772 | W72: 0.006798119772 | Z72: 25.09152155 | AC72: 0.1125 | AD72: 0 | AE72: 0 | AF72: 0.7371206067
A73: 46 | B73: 0.2509090909 | C73: 0.345 | D73: 1.705475625 | E73: 0.09962875264 | F73: 1.368336963 | G73: 0.4834533315 | H73: 0.1045177555 | I73: 0.1025824258 | J73: 0.0003035528012 | K73: 0.007100436664 | L73: 0.007100436664 | M73: 0.007100436664 | P73: 25.85868747 | Q73: 0.04605643721 | R73: 0.04605608798 | S73: 0.04665565325 | T73: 0.007100436664 | U73: 0.007100436664 | V73: 0.007100436664 | W73: 0.007100436664 | Z73: 25.09557994 | AC73: 0.115 | AD73: 0 | AE73: 0 | AF73: 0.763107536
A74: 47 | B74: 0.2563636364 | C74: 0.3525 | D74: 1.741221563 | E74: 0.1038769286 | F74: 1.404234342 | G74: 0.502191466 | H74: 0.1089696382 | I74: 0.1069537248 | J74: 0.0003100582893 | K74: 0.007409204082 | L74: 0.007409204082 | M74: 0.007409204082 | P74: 25.88910588 | Q74: 0.04804300814 | R74: 0.04804264398 | S74: 0.04866781563 | T74: 0.007409204082 | U74: 0.007409204082 | V74: 0.007409204082 | W74: 0.007409204082 | Z74: 25.09972416 | AC74: 0.1175 | AD74: 0 | AE74: 0 | AF74: 0.7893817131
A75: 48 | B75: 0.2618181818 | C75: 0.36 | D75: 1.77693 | E75: 0.10820843 | F75: 1.440115596 | G75: 0.5211903932 | H75: 0.1135085422 | I75: 0.1114105865 | J75: 0.0003165569599 | K75: 0.007724414036 | L75: 0.007724414036 | M75: 0.007724414036 | P75: 25.9198931 | Q75: 0.05006999403 | R75: 0.05006961466 | S75: 0.05072089735 | T75: 0.007724414036 | U75: 0.007724414036 | V75: 0.007724414036 | W75: 0.007724414036 | Z75: 25.10395408 | AC75: 0.12 | AD75: 0 | AE75: 0 | AF75: 0.8159390196
A76: 49 | B76: 0.2672727273 | C76: 0.3675 | D76: 1.812600938 | E76: 0.1126229374 | F76: 1.475978449 | G76: 0.5404455392 | H76: 0.1181341213 | I76: 0.1159526753 | J76: 0.0003230488129 | K76: 0.008046058538 | L76: 0.008046058538 | M76: 0.008046058538 | P76: 25.95104501 | Q76: 0.05213730161 | R76: 0.05213690674 | S76: 0.05281480331 | T76: 0.008046058538 | U76: 0.008046058538 | V76: 0.008046058538 | W76: 0.008046058538 | Z76: 25.10826956 | AC76: 0.1225 | AD76: 0 | AE76: 0 | AF76: 0.8427754464
A77: 50 | B77: 0.2727272727 | C77: 0.375 | D77: 1.848234375 | E77: 0.1171201318 | F77: 1.511820868 | G77: 0.5599524001 | H77: 0.1228460301 | I77: 0.1205796565 | J77: 0.0003295338483 | K77: 0.0083741296 | L77: 0.0083741296 | M77: 0.0083741296 | P77: 25.98255755 | Q77: 0.05424483773 | R77: 0.05424442706 | S77: 0.05494943847 | T77: 0.0083741296 | U77: 0.0083741296 | V77: 0.0083741296 | W77: 0.0083741296 | Z77: 25.11267046 | AC77: 0.125 | AD77: 0 | AE77: 0 | AF77: 0.8698870861
A78: 51 | B78: 0.2781818182 | C78: 0.3825 | D78: 1.883830312 | E78: 0.1216996954 | F78: 1.547641035 | G78: 0.5797065413 | H78: 0.1276439243 | I78: 0.1252911965 | J78: 0.0003360120662 | K78: 0.008708619235 | L78: 0.008708619235 | M78: 0.008708619235 | P78: 26.01442677 | Q78: 0.05639250932 | R78: 0.05639208257 | S78: 0.05712470797 | T78: 0.008708619235 | U78: 0.008708619235 | V78: 0.008708619235 | W78: 0.008708619235 | Z78: 25.11715664 | AC78: 0.1275 | AD78: 0 | AE78: 0 | AF78: 0.8972701265
A79: 52 | B79: 0.2836363636 | C79: 0.39 | D79: 1.91938875 | E79: 0.126361311 | F79: 1.583437327 | G79: 0.5997035959 | H79: 0.1325274605 | I79: 0.1300869622 | J79: 0.0003424834665 | K79: 0.00904951946 | L79: 0.00904951946 | M79: 0.00904951946 | P79: 26.04664881 | Q79: 0.05858022345 | R79: 0.05857978032 | S79: 0.05934051701 | T79: 0.00904951946 | U79: 0.00904951946 | V79: 0.00904951946 | W79: 0.00904951946 | Z79: 25.12172796 | AC79: 0.13 | AD79: 0 | AE79: 0 | AF79: 0.9249208453
A80: 53 | B80: 0.2890909091 | C80: 0.3975 | D80: 1.954909687 | E80: 0.1311046624 | F80: 1.619208292 | G80: 0.6199392643 | H80: 0.1374962963 | I80: 0.1349666217 | J80: 0.0003489480492 | K80: 0.009396822292 | L80: 0.009396822292 | M80: 0.009396822292 | P80: 26.07921989 | Q80: 0.06080788728 | R80: 0.06080742748 | S80: 0.06159677094 | T80: 0.009396822292 | U80: 0.009396822292 | V80: 0.009396822292 | W80: 0.009396822292 | Z80: 25.12638429 | AC80: 0.1325 | AD80: 0 | AE80: 0 | AF80: 0.952835604
A81: 54 | B81: 0.2945454545 | C81: 0.405 | D81: 1.990393125 | E81: 0.1359294341 | F81: 1.654952636 | G81: 0.6404093126 | H81: 0.1425500903 | I81: 0.139929844 | J81: 0.0003554058144 | K81: 0.009750519748 | L81: 0.009750519748 | M81: 0.009750519748 | P81: 26.11213633 | Q81: 0.0630754081 | R81: 0.06307493135 | S81: 0.0638933752 | T81: 0.009750519748 | U81: 0.009750519748 | V81: 0.009750519748 | W81: 0.009750519748 | Z81: 25.13112548 | AC81: 0.135 | AD81: 0 | AE81: 0 | AF81: 0.9810108438
A82: 55 | B82: 0.3 | C82: 0.4125 | D82: 2.025839062 | E82: 0.1408353116 | F82: 1.690669199 | G82: 0.6611095718 | H82: 0.1476885018 | I82: 0.1449762988 | J82: 0.000361856762 | K82: 0.01011060385 | L82: 0.01011060385 | M82: 0.01011060385 | P82: 26.14539448 | Q82: 0.06538269331 | R82: 0.06538219931 | S82: 0.06623023537 | T82: 0.01011060385 | U82: 0.01011060385 | V82: 0.01011060385 | W82: 0.01011060385 | Z82: 25.1359514 | AC82: 0.1375 | AD82: 0 | AE82: 0 | AF82: 1.009443081
A83: 56 | B83: 0.3054545455 | C83: 0.42 | D83: 2.0612475 | E83: 0.1458219811 | F83: 1.726356947 | G83: 0.6820359369 | H83: 0.1529111914 | I83: 0.1501056571 | J83: 0.0003683008921 | K83: 0.01047706662 | L83: 0.01047706662 | M83: 0.01047706662 | P83: 26.17899082 | Q83: 0.06772965039 | R83: 0.06772913887 | S83: 0.06860725712 | T83: 0.01047706662 | U83: 0.01047706662 | V83: 0.01047706662 | W83: 0.01047706662 | Z83: 25.14086192 | AC83: 0.14 | AD83: 0 | AE83: 0 | AF83: 1.038128903
A84: 57 | B84: 0.3109090909 | C84: 0.4275 | D84: 2.096618437 | E84: 0.1508891296 | F84: 1.762014955 | G84: 0.7031843659 | H84: 0.1582178203 | I84: 0.1553175903 | J84: 0.0003747382046 | K84: 0.01084990007 | L84: 0.01084990007 | M84: 0.01084990007 | P84: 26.21292184 | Q84: 0.07011618697 | R84: 0.07011565764 | S84: 0.07102434625 | T84: 0.01084990007 | U84: 0.01084990007 | V84: 0.01084990007 | W84: 0.01084990007 | Z84: 25.14585688 | AC84: 0.1425 | AD84: 0 | AE84: 0 | AF84: 1.067064965
A85: 58 | B85: 0.3163636364 | C85: 0.435 | D85: 2.131951875 | E85: 0.156036445 | F85: 1.797642397 | G85: 0.7245508788 | H85: 0.163608051 | I85: 0.1606117711 | J85: 0.0003811686995 | K85: 0.01122909624 | L85: 0.01122909624 | M85: 0.01122909624 | P85: 26.24718415 | Q85: 0.07254221077 | R85: 0.07254166335 | S85: 0.07348140868 | T85: 0.01122909624 | U85: 0.01122909624 | V85: 0.01122909624 | W85: 0.01122909624 | Z85: 25.15093616 | AC85: 0.145 | AD85: 0 | AE85: 0 | AF85: 1.096247986
A86: 59 | B86: 0.3218181818 | C86: 0.4425 | D86: 2.167247812 | E86: 0.1612636161 | F86: 1.833238534 | G86: 0.7461315564 | H86: 0.1690815465 | I86: 0.1659878729 | J86: 0.0003875923769 | K86: 0.01161464715 | L86: 0.01161464715 | M86: 0.01161464715 | P86: 26.28177436 | Q86: 0.07500762963 | R86: 0.07500706383 | S86: 0.07597835042 | T86: 0.01161464715 | U86: 0.01161464715 | V86: 0.01161464715 | W86: 0.01161464715 | Z86: 25.15609962 | AC86: 0.1475 | AD86: 0 | AE86: 0 | AF86: 1.125674747
A87: 60 | B87: 0.3272727273 | C87: 0.45 | D87: 2.20250625 | E87: 0.1665703324 | F87: 1.868802707 | G87: 0.7679225398 | H87: 0.1746379712 | I87: 0.17144557 | J87: 0.0003940092367 | K87: 0.01200654483 | L87: 0.01200654483 | M87: 0.01200654483 | P87: 26.3166892 | Q87: 0.07751235148 | R87: 0.07751176703 | S87: 0.07851507761 | T87: 0.01200654483 | U87: 0.01200654483 | V87: 0.01200654483 | W87: 0.01200654483 | Z87: 25.16134711 | AC87: 0.15 | AD87: 0 | AE87: 0 | AF87: 1.155342086
A88: 61 | B88: 0.3327272727 | C88: 0.4575 | D88: 2.237727187 | E88: 0.1719562843 | F88: 1.904334326 | G88: 0.7899200292 | H88: 0.1802769901 | I88: 0.1769845375 | J88: 0.000400419279 | K88: 0.0124047813 | L88: 0.0124047813 | M88: 0.0124047813 | P88: 26.35192541 | Q88: 0.0800562844 | R88: 0.080055681 | S88: 0.08109149651 | T88: 0.0124047813 | U88: 0.0124047813 | V88: 0.0124047813 | W88: 0.0124047813 | Z88: 25.16667851 | AC88: 0.1525 | AD88: 0 | AE88: 0 | AF88: 1.185246901
A89: 62 | B89: 0.3381818182 | C89: 0.465 | D89: 2.272910625 | E89: 0.1774211629 | F89: 1.939832865 | G89: 0.8121202832 | H89: 0.1859982692 | I89: 0.1826044517 | J89: 0.0004068225037 | K89: 0.01280934859 | L89: 0.01280934859 | M89: 0.01280934859 | P89: 26.38747982 | Q89: 0.08263933653 | R89: 0.08263871392 | S89: 0.08370751349 | T89: 0.01280934859 | U89: 0.01280934859 | V89: 0.01280934859 | W89: 0.01280934859 | Z89: 25.17209368 | AC89: 0.155 | AD89: 0 | AE89: 0 | AF89: 1.215386139
A90: 63 | B90: 0.3436363636 | C90: 0.4725 | D90: 2.308056562 | E90: 0.1829646602 | F90: 1.975297853 | G90: 0.8345196175 | H90: 0.1918014757 | I90: 0.1883049895 | J90: 0.0004132189108 | K90: 0.01322023874 | L90: 0.01322023874 | M90: 0.01322023874 | P90: 26.42334927 | Q90: 0.08526141616 | R90: 0.08526077405 | S90: 0.08636303501 | T90: 0.01322023874 | U90: 0.01322023874 | V90: 0.01322023874 | W90: 0.01322023874 | Z90: 25.17759247 | AC90: 0.1575 | AD90: 0 | AE90: 0 | AF90: 1.245756802
A91: 64 | B91: =($AD$11/2000)*(A91) -> 0.3490909091 | C91: =$AD$13*B91*10^-3/($AD$4*10^-6) -> 0.48 | D91: 2.343165 | E91: 0.1885864691 | F91: 2.010728869 | G91: 0.8571144045 | H91: 0.1976862772 | I91: 0.1940858287 | J91: 0.0004196085003 | K91: 0.01363744378 | L91: 0.01363744378 | M91: 0.01363744378 | P91: 26.4595307 | Q91: 0.08792243168 | R91: 0.0879217698 | S91: 0.08905796767 | T91: 0.01363744378 | U91: 0.01363744378 | V91: 0.01363744378 | W91: 0.01363744378 | Z91: 25.18317476 | AC91: =IF(C91>=$AD$6,C91,0)/$AD$5 -> 0.16 | AD91: =IF(C91>=$AD$8,$AD$7,0) -> 0 | AE91: =IF(C91>$AD$10,($AD$9/C91),0) -> 0 | AF91: =(P91-Z91)*IF((Vcc_max-C91)>$F$4,1,0) -> 1.276355941
A92: 65 | B92: 0.3545454545 | C92: 0.4875 | D92: =IF(OR(P91>=160,AF91>=60,D91=0),0, (Vcc_max-C92)*($AD$13+IF(C92>=$AD$8,$AD$7,0)+(IF(C92>=$AD$6,C92,0)/$AD$5)+IF(C92>$AD$10,($AD$9/C92),0))) -> 2.378235937 | E92: =(D91+((((EXP(-(B92-B91)*10^-3/$F$14)))*(E91-D91)))) -> 0.1942862832 | F92: =(D91+((((EXP(-(B92-B91)*10^-3/$F$15)))*(F91-D91)))) -> 2.046125539 | G92: =(D91+((((EXP(-(B92-B91)*10^-3/$F$16)))*(G91-D91)))) -> 0.8799010722 | H92: =(D91+((((EXP(-(B92-B91)*10^-3/$F$17)))*(H91-D91)))) -> 0.2036523428 | I92: =(D91+((((EXP(-(B92-B91)*10^-3/$F$18)))*(I91-D91)))) -> 0.1999466481 | J92: =(D91+((((EXP(-(B92-B91)*10^-3/$F$19)))*(JW91-D91)))) -> 0.0004259912723 | K92: =(D91+((((EXP(-(B92-B91)*10^-3/$F$20)))*(K91-D91)))) -> 0.01406095574 | L92: =(D91+((((EXP(-(B92-B91)*10^-3/$F$21)))*(L91-D91)))) -> 0.01406095574 | M92: =(D91+((((EXP(-(B92-B91)*10^-3/$F$22)))*(M91-D91)))) -> 0.01406095574 | P92: 26.49602105 | Q92: =(D91+((((EXP(-(B92-B91)*10^-3/$B$14)))*(Q91-D91)))) -> 0.09062229157 | R92: =(D91+((((EXP(-(B92-B91)*10^-3/$B$15)))*(R91-D91)))) -> 0.09062160964 | S92: =(D91+((((EXP(-(B92-B91)*10^-3/$B$16)))*(S91-D91)))) -> 0.09179221819 | T92: =(D91+((((EXP(-(B92-B91)*10^-3/$B$17)))*(T91-D91)))) -> 0.01406095574 | U92: =(D91+((((EXP(-(B92-B91)*10^-3/$B$18)))*(U91-D91)))) -> 0.01406095574 | V92: 0.01406095574 | W92: 0.01406095574 | Z92: 25.18884039 | AC92: 0.1625 | AD92: 0 | AE92: 0 | AF92: 1.307180655
A93: 66 | B93: 0.36 | C93: 0.495 | D93: 2.413269375 | E93: 0.2000637969 | F93: 2.081487525 | G93: 0.9028761033 | H93: 0.209699342 | I93: 0.2058871273 | J93: 0.0004323672268 | K93: 0.01449076666 | L93: 0.01449076666 | M93: 0.01449076666 | P93: =$C$6+(E93*$G$14)+(F93*$G$15)+(G93*$G$16)+(H93*$G$17)+(I93*$G$18)+(J93*$G$19)+(K93*$G$20)+(L93*$G$21)+(M93*$G$22) -> 26.53281734 | Q93: 0.09336090444 | R93: 0.09336020219 | S93: 0.09456569338 | T93: 0.01449076666 | U93: 0.01449076666 | V93: =(D92+((((EXP(-(B93-B92)*10^-3/$B$19)))*(V92-D92)))) -> 0.01449076666 | W93: =(D92+((((EXP(-(B93-B92)*10^-3/$B$20)))*(W92-D92)))) -> 0.01449076666 | Z93: =$C$6+(Q93*$C$14)+(R93*$C$15)+(S93*$C$16)+(T93*$C$17)+(U93*$C$18)+(V93*$C$19)+(W93*$C$20) -> 25.19458925 | AC93: 0.165 | AD93: 0 | AE93: 0 | AF93: 1.338228089
A94: 67 | B94: 0.3654545455 | C94: 0.5025 | D94: 2.448265312 | E94: 0.2059187055 | F94: 2.116814529 | G94: 0.9260360345 | H94: 0.2158269457 | I94: 0.2119069468 | J94: 0.0004387363637 | K94: 0.01492686858 | L94: 0.01492686858 | M94: 0.01492686858 | P94: 26.56991662 | Q94: 0.09613817901 | R94: 0.09613745616 | S94: 0.09737830017 | T94: 0.01492686858 | U94: 0.01492686858 | V94: 0.01492686858 | W94: 0.01492686858 | Z94: 25.20042118 | AC94: 0.1675 | AD94: 0 | AE94: 0 | AF94: 1.369495435
A95: 68 | B95: 0.3709090909 | C95: 0.51 | D95: 2.48322375 | E95: 0.2118507051 | F95: 2.152106282 | G95: 0.9493774555 | H95: 0.2220348253 | I95: 0.2180057879 | J95: 0.000445098683 | K95: 0.01536925354 | L95: 0.01536925354 | M95: 0.01536925354 | P95: 26.60731599 | Q95: 0.0989540241 | R95: 0.09895328037 | S95: 0.1002299456 | T95: 0.01536925354 | U95: 0.01536925354 | V95: 0.01536925354 | W95: 0.01536925354 | Z95: 25.20633606 | AC95: 0.17 | AD95: 0 | AE95: 0 | AF95: 1.400979926
A96: 69 | B96: 0.3763636364 | C96: 0.5175 | D96: 2.518144687 | E96: 0.2178594924 | F96: 2.187362545 | G96: 0.9728970086 | H96: 0.2283226533 | I96: 0.224183333 | J96: 0.0004514541847 | K96: 0.01581791356 | L96: 0.01581791356 | M96: 0.01581791356 | P96: 26.64501259 | Q96: 0.1018083486 | R96: 0.1018075838 | S96: 0.1031205368 | T96: 0.01581791356 | U96: 0.01581791356 | V96: 0.01581791356 | W96: 0.01581791356 | Z96: 25.21233375 | AC96: 0.1725 | AD96: 0 | AE96: 0 | AF96: 1.432678839
A97: 70 | B97: 0.3818181818 | C97: 0.525 | D97: 2.553028125 | E97: 0.2239447651 | F97: 2.222583103 | G97: 0.9965913871 | H97: 0.2346901032 | I97: 0.230439265 | J97: 0.0004578028689 | K97: 0.01627284071 | L97: 0.01627284071 | M97: 0.01627284071 | P97: 26.68300359 | Q97: 0.1047010617 | R97: 0.1047002754 | S97: 0.1060499812 | T97: 0.01627284071 | U97: 0.01627284071 | V97: 0.01627284071 | W97: 0.01627284071 | Z97: 25.2184141 | AC97: 0.175 | AD97: 0 | AE97: 0 | AF97: 1.46458949
A98: 71 | B98: 0.3872727273 | C98: 0.5325 | D98: 2.587874062 | E98: 0.2301062217 | F98: 2.257767766 | G98: 1.020457335 | H98: 0.2411368493 | I98: 0.236773268 | J98: 0.0004641447356 | K98: 0.01673402702 | L98: 0.01673402702 | M98: 0.01673402702 | P98: 26.72128623 | Q98: 0.1076320723 | R98: 0.1076312644 | S98: 0.1090181859 | T98: 0.01673402702 | U98: 0.01673402702 | V98: 0.01673402702 | W98: 0.01673402702 | Z98: 25.22457699 | AC98: 0.1775 | AD98: 0 | AE98: 0 | AF98: 1.496709238
A99: 72 | B99: 0.3927272727 | C99: 0.54 | D99: 2.6226825 | E99: 0.2363435615 | F99: 2.292916363 | G99: 1.044491648 | H99: 0.2476625668 | I99: 0.2431850267 | J99: 0.0004704797846 | K99: 0.01720146453 | L99: 0.01720146453 | M99: 0.01720146453 | P99: 26.75985776 | Q99: 0.1106012899 | R99: 0.11060046 | S99: 0.1120250587 | T99: 0.01720146453 | U99: 0.01720146453 | V99: 0.01720146453 | W99: 0.01720146453 | Z99: 25.23082228 | AC99: 0.18 | AD99: 0 | AE99: 0 | AF99: 1.529035479
A100: 73 | B100: 0.3981818182 | C100: 0.5475 | D100: 2.657453438 | E100: 0.2426564845 | F100: 2.32802874 | G100: 1.068691167 | H100: 0.2542669318 | I100: 0.2496742269 | J100: 0.0004768080161 | K100: 0.01767514529 | L100: 0.01767514529 | M100: 0.01767514529 | P100: 26.79871547 | Q100: 0.1136086238 | R100: 0.1136077716 | S100: 0.1150705069 | T100: 0.01767514529 | U100: 0.01767514529 | V100: 0.01767514529 | W100: 0.01767514529 | Z100: 25.23714983 | AC100: 0.1825 | AD100: 0 | AE100: 0 | AF100: 1.561565646
A101: 74 | B101: 0.4036363636 | C101: 0.555 | D101: 2.692186875 | E101: 0.2490446915 | F101: 2.363104762 | G101: 1.093052786 | H101: 0.2609496213 | I101: 0.2562405551 | J101: 0.0004831294301 | K101: 0.01815506135 | L101: 0.01815506135 | M101: 0.01815506135 | P101: 26.83785671 | Q101: 0.1166539834 | R101: 0.1166531087 | S101: 0.1181544385 | T101: 0.01815506135 | U101: 0.01815506135 | V101: 0.01815506135 | W101: 0.01815506135 | Z101: 25.2435595 | AC101: 0.185 | AD101: 0 | AE101: 0 | AF101: 1.59429721
A102: 75 | B102: 0.4090909091 | C102: 0.5625 | D102: 2.726882812 | E102: 0.2555078842 | F102: 2.398144307 | G102: 1.117573443 | H102: 0.2677103133 | I102: 0.2628836986 | J102: 0.0004894440265 | K102: 0.01864120475 | L102: 0.01864120475 | M102: 0.01864120475 | P102: 26.87727884 | Q102: 0.1197372783 | R102: 0.1197363809 | S102: 0.1212767612 | T102: 0.01864120475 | U102: 0.01864120475 | V102: 0.01864120475 | W102: 0.01864120475 | Z102: 25.25005116 | AC102: 0.1875 | AD102: 0 | AE102: 0 | AF102: 1.62722768
A103: 76 | B103: 0.4145454545 | C103: 0.57 | D103: 2.76154125 | E103: 0.2620457651 | F103: 2.433147266 | G103: 1.142250125 | H103: 0.2745486865 | I103: 0.2696033458 | J103: 0.0004957518053 | K103: 0.01913356756 | L103: 0.01913356756 | M103: 0.01913356756 | P103: 26.91697928 | Q103: 0.1228584182 | R103: 0.1228574978 | S103: 0.1244373829 | T103: 0.01913356756 | U103: 0.01913356756 | V103: 0.01913356756 | W103: 0.01913356756 | Z103: 25.25662468 | AC103: 0.19 | AD103: 0 | AE103: 0 | AF103: 1.660354596
A104: 77 | B104: 0.42 | C104: 0.5775 | D104: 2.796162187 | E104: 0.2686580372 | F104: 2.468113542 | G104: 1.167079864 | H104: 0.2814644208 | I104: 0.2763991857 | J104: 0.0005020527665 | K104: 0.01963214181 | L104: 0.01963214181 | M104: 0.01963214181 | P104: 26.95695545 | Q104: 0.126017313 | R104: 0.1260163693 | S104: 0.1276362118 | T104: 0.01963214181 | U104: 0.01963214181 | V104: 0.01963214181 | W104: 0.01963214181 | Z104: 25.26327991 | AC104: 0.1925 | AD104: 0 | AE104: 0 | AF104: 1.693675536
A105: 78 | B105: 0.4254545455 | C105: 0.585 | D105: 2.830745625 | E105: 0.2753444047 | F105: 2.503043046 | G105: 1.192059739 | H105: 0.2884571966 | I105: 0.2832709083 | J105: 0.0005083469102 | K105: 0.02013691956 | L105: 0.02013691956 | M105: 0.02013691956 | P105: 26.99720484 | Q105: 0.1292138725 | R105: 0.1292129052 | S105: 0.1308731559 | T105: 0.02013691956 | U105: 0.02013691956 | V105: 0.02013691956 | W105: 0.02013691956 | Z105: 25.27001673 | AC105: 0.195 | AD105: 0 | AE105: 0 | AF105: 1.72718811
A106: 79 | B106: 0.4309090909 | C106: 0.5925 | D106: 2.865291562 | E106: 0.2821045722 | F106: 2.537935703 | G106: 1.217186872 | H106: 0.2955266954 | I106: 0.2902182044 | J106: 0.0005146342364 | K106: 0.02064789288 | L106: 0.02064789288 | M106: 0.02064789288 | P106: 27.03772495 | Q106: 0.1324480067 | R106: 0.1324470157 | S106: 0.1341481236 | T106: 0.02064789288 | U106: 0.02064789288 | V106: 0.02064789288 | W106: 0.02064789288 | Z106: 25.27683499 | AC106: 0.1975 | AD106: 0 | AE106: 0 | AF106: 1.760889962
A107: 80 | B107: 0.4363636364 | C107: 0.6 | D107: 2.8998 | E107: 0.2889382455 | F107: 2.572791443 | G107: 1.24245843 | H107: 0.3026725997 | I107: 0.2972407655 | J107: 0.000520914745 | K107: 0.0211650538 | L107: 0.0211650538 | M107: 0.0211650538 | P107: 27.07851332 | Q107: 0.1357196258 | R107: 0.1357186107 | S107: 0.1374610232 | T107: 0.0211650538 | U107: 0.0211650538 | V107: 0.0211650538 | W107: 0.0211650538 | Z107: 25.28373455 | AC107: 0.2 | AD107: 0 | AE107: 0 | AF107: 1.794778767
A108: 81 | B108: 0.4418181818 | C108: 0.6075 | D108: 2.934270937 | E108: 0.2958451307 | F108: 2.607610203 | G108: 1.267871623 | H108: 0.3098945927 | I108: 0.3043382843 | J108: 0.000527188436 | K108: 0.02168839439 | L108: 0.02168839439 | M108: 0.02168839439 | P108: 27.11956753 | Q108: 0.1390286401 | R108: 0.1390276006 | S108: 0.1408117633 | T108: 0.02168839439 | U108: 0.02168839439 | V108: 0.02168839439 | W108: 0.02168839439 | Z108: 25.2907153 | AC108: 0.2025 | AD108: 0 | AE108: 0 | AF108: 1.828852232
A109: 82 | B109: 0.4472727273 | C109: 0.615 | D109: 2.968704375 | E109: 0.302824935 | F109: 2.642391927 | G109: 1.293423706 | H109: 0.3171923585 | I109: 0.3115104539 | J109: 0.0005334553094 | K109: 0.02221790672 | L109: 0.02221790672 | M109: 0.02221790672 | P109: 27.16088518 | Q109: 0.1423749597 | R109: 0.1423738957 | S109: 0.1442002525 | T109: 0.02221790672 | U109: 0.02221790672 | V109: 0.02221790672 | W109: 0.02221790672 | Z109: 25.29777708 | AC109: 0.205 | AD109: 0 | AE109: 0 | AF109: 1.863108095
A110: 83 | B110: 0.4527272727 | C110: 0.6225 | D110: 3.003100312 | E110: 0.3098773664 | F110: 2.677136568 | G110: 1.319111972 | H110: 0.3245655821 | I110: 0.3187569685 | J110: 0.0005397153653 | K110: 0.02275358283 | L110: 0.02275358283 | M110: 0.02275358283 | P110: 27.20246389 | Q110: 0.1457584953 | R110: 0.1457574064 | S110: 0.1476263994 | T110: 0.02275358283 | U110: 0.02275358283 | V110: 0.02275358283 | W110: 0.02275358283 | Z110: 25.30491977 | AC110: 0.2075 | AD110: 0 | AE110: 0 | AF110: 1.897544127
A111: 84 | B111: 0.4581818182 | C111: 0.63 | D111: 3.03745875 | E111: 0.3170021335 | F111: 2.71184408 | G111: 1.34493376 | H111: 0.3320139495 | I111: 0.3260775232 | J111: 0.0005459686036 | K111: 0.0232954148 | L111: 0.0232954148 | M111: 0.0232954148 | P111: 27.24430135 | Q111: 0.1491791573 | R111: 0.1491780433 | S111: 0.1510901129 | T111: 0.0232954148 | U111: 0.0232954148 | V111: 0.0232954148 | W111: 0.0232954148 | Z111: 25.31214322 | AC111: 0.21 | AD111: 0 | AE111: 0 | AF111: 1.932158124
A112: 85 | B112: 0.4636363636 | C112: 0.6375 | D112: 3.071779687 | E112: 0.3241989456 | F112: 2.746514423 | G112: 1.370886446 | H112: 0.3395371474 | I112: 0.3334718137 | J112: 0.0005522150244 | K112: 0.02384339467 | L112: 0.02384339467 | M112: 0.02384339467 | P112: 27.28639522 | Q112: 0.1526368564 | R112: 0.1526357171 | S112: 0.154591302 | T112: 0.02384339467 | U112: 0.02384339467 | V112: 0.02384339467 | W112: 0.02384339467 | Z112: 25.31944731 | AC112: 0.2125 | AD112: 0 | AE112: 0 | AF112: 1.966947916
A113: 86 | B113: 0.4690909091 | C113: 0.645 | D113: 3.106063125 | E113: 0.3314675131 | F113: 2.781147563 | G113: 1.396967448 | H113: 0.3471348634 | I113: 0.3409395366 | J113: 0.0005584546276 | K113: 0.02439751453 | L113: 0.02439751453 | M113: 0.02439751453 | P113: 27.32874325 | Q113: 0.1561315034 | R113: 0.1561303385 | S113: 0.1581298757 | T113: 0.02439751453 | U113: 0.02439751453 | V113: 0.02439751453 | W113: 0.02439751453 | Z113: 25.3268319 | AC113: 0.215 | AD113: 0 | AE113: 0 | AF113: 2.001911358
A114: 87 | B114: 0.4745454545 | C114: 0.6525 | D114: 3.140309062 | E114: 0.3388075469 | F114: 2.815743468 | G114: 1.423174224 | H114: 0.3548067861 | I114: 0.3484803896 | J114: 0.0005646874132 | K114: 0.02495776644 | L114: 0.02495776644 | M114: 0.02495776644 | P114: 27.37134318 | Q114: 0.1596630091 | R114: 0.1596618183 | S114: 0.1617057432 | T114: 0.02495776644 | U114: 0.02495776644 | V114: 0.02495776644 | W114: 0.02495776644 | Z114: 25.33429684 | AC114: 0.2175 | AD114: 0 | AE114: 0 | AF114: 2.037046336
A115: 88 | B115: 0.48 | C115: 0.66 | D115: 3.1745175 | E115: 0.3462187587 | F115: 2.850302109 | G115: 1.449504271 | H115: 0.3625526047 | I115: 0.3560940708 | J115: 0.0005709133813 | K115: 0.02552414246 | L115: 0.02552414246 | M115: 0.02552414246 | P115: 27.41419279 | Q115: 0.1632312846 | R115: 0.1632300677 | S115: 0.1653188137 | T115: 0.02552414246 | U115: 0.02552414246 | V115: 0.02552414246 | W115: 0.02552414246 | Z115: 25.34184202 | AC115: 0.22 | AD115: 0 | AE115: 0 | AF115: 2.072350763
A116: 89 | B116: 0.4854545455 | C116: 0.6675 | D116: 3.208688437 | E116: 0.353700861 | F116: 2.884823462 | G116: 1.475955122 | H116: 0.3703720096 | I116: 0.3637802793 | J116: 0.0005771325318 | K116: 0.02609663466 | L116: 0.02609663466 | M116: 0.02609663466 | P116: 27.45728987 | Q116: 0.1668362409 | R116: 0.1668349976 | S116: 0.1689689966 | T116: 0.02609663466 | U116: 0.02609663466 | V116: 0.02609663466 | W116: 0.02609663466 | Z116: 25.34946729 | AC116: 0.2225 | AD116: 0 | AE116: 0 | AF116: 2.107822578
A117: 90 | B117: 0.4909090909 | C117: 0.675 | D117: 3.242821875 | E117: 0.3612535671 | F117: 2.919307504 | G117: 1.502524351 | H117: 0.3782646919 | I117: 0.3715387152 | J117: 0.0005833448648 | K117: 0.02667523511 | L117: 0.02667523511 | M117: 0.02667523511 | P117: 27.50063227 | Q117: 0.1704777892 | R117: 0.1704765193 | S117: 0.1726562015 | T117: 0.02667523511 | U117: 0.02667523511 | V117: 0.02667523511 | W117: 0.02667523511 | Z117: 25.35717252 | AC117: 0.225 | AD117: 0 | AE117: 0 | AF117: 2.143459749
A118: 91 | B118: 0.4963636364 | C118: 0.6825 | D118: 3.276917813 | E118: 0.368876591 | F118: 2.953754215 | G118: 1.529209567 | H118: 0.3862303434 | I118: 0.3793690791 | J118: 0.0005895503802 | K118: 0.02725993589 | L118: 0.02725993589 | M118: 0.02725993589 | P118: 27.54421785 | Q118: 0.1741558408 | R118: 0.174154544 | S118: 0.1763803379 | T118: 0.02725993589 | U118: 0.02725993589 | V118: 0.02725993589 | W118: 0.02725993589 | Z118: 25.36495758 | AC118: 0.2275 | AD118: 0 | AE118: 0 | AF118: 2.179260269
A119: 92 | B119: 0.5018181818 | C119: 0.69 | D119: 3.31097625 | E119: 0.3765696475 | F119: 2.988163577 | G119: 1.556008417 | H119: 0.3942686571 | I119: 0.3872710727 | J119: 0.000595749078 | K119: 0.02785072907 | L119: 0.02785072907 | M119: 0.02785072907 | P119: 27.58804448 | Q119: 0.1778703072 | R119: 0.1778689832 | S119: 0.1801413156 | T119: 0.02785072907 | U119: 0.02785072907 | V119: 0.02785072907 | W119: 0.02785072907 | Z119: 25.37282232 | AC119: 0.23 | AD119: 0 | AE119: 0 | AF119: 2.215222157
A120: 93 | B120: 0.5072727273 | C120: 0.6975 | D120: 3.344997187 | E120: 0.3843324521 | F120: 3.022535573 | G120: 1.582918583 | H120: 0.4023793265 | I120: 0.3952443983 | J120: 0.0006019409583 | K120: 0.02844760671 | L120: 0.02844760671 | M120: 0.02844760671 | P120: 27.63211008 | Q120: 0.1816210997 | R120: 0.1816197484 | S120: 0.1839390443 | T120: 0.02844760671 | U120: 0.02844760671 | V120: 0.02844760671 | W120: 0.02844760671 | Z120: 25.38076662 | AC120: 0.2325 | AD120: 0 | AE120: 0 | AF120: 2.251343458
A121: 94 | B121: 0.5127272727 | C121: 0.705 | D121: 3.378980625 | E121: 0.3921647211 | F121: 3.05687019 | G121: 1.609937784 | H121: 0.4105620462 | I121: 0.4032887592 | J121: 0.000608126021 | K121: 0.02905056091 | L121: 0.02905056091 | M121: 0.02905056091 | P121: 27.67641258 | Q121: 0.1854081302 | R121: 0.1854067512 | S121: 0.187773434 | T121: 0.02905056091 | U121: 0.02905056091 | V121: 0.02905056091 | W121: 0.02905056091 | Z121: 25.38879034 | AC121: 0.235 | AD121: 0 | AE121: 0 | AF121: 2.287622242
A122: 95 | B122: 0.5181818182 | C122: 0.7125 | D122: 3.412926563 | E122: 0.4000661715 | F122: 3.091167414 | G122: 1.637063773 | H122: 0.4188165115 | I122: 0.4114038593 | J122: 0.0006143042661 | K122: 0.02965958374 | L122: 0.02965958374 | M122: 0.02965958374 | P122: 27.72094995 | Q122: 0.1892313102 | R122: 0.1892299034 | S122: 0.1916443948 | T122: 0.02965958374 | U122: 0.02965958374 | V122: 0.02965958374 | W122: 0.02965958374 | Z122: 25.39689335 | AC122: 0.2375 | AD122: 0 | AE122: 0 | AF122: 2.324056602
A123: 96 | B123: 0.5236363636 | C123: 0.72 | D123: 3.446835 | E123: 0.4080365211 | F123: 3.125427235 | G123: 1.664294336 | H123: 0.4271424187 | I123: 0.4195894035 | J123: 0.0006204756937 | K123: 0.03027466727 | L123: 0.03027466727 | M123: 0.03027466727 | P123: 27.76572017 | Q123: 0.1930905516 | R123: 0.1930891167 | S123: 0.1955518368 | T123: 0.03027466727 | U123: 0.03027466727 | V123: 0.03027466727 | W123: 0.03027466727 | Z123: 25.40507551 | AC123: 0.24 | AD123: 0 | AE123: 0 | AF123: 2.360644659
A124: 97 | B124: 0.5290909091 | C124: 0.7275 | D124: 3.480705938 | E124: 0.4160754885 | F124: 3.159649641 | G124: 1.691627296 | H124: 0.4355394649 | I124: 0.4278450973 | J124: 0.0006266403037 | K124: 0.03089580359 | L124: 0.03089580359 | M124: 0.03089580359 | P124: 27.81072124 | Q124: 0.1969857663 | R124: 0.1969843031 | S124: 0.1994956702 | T124: 0.03089580359 | U124: 0.03089580359 | V124: 0.03089580359 | W124: 0.03089580359 | Z124: 25.41333669 | AC124: 0.2425 | AD124: 0 | AE124: 0 | AF124: 2.397384555
A125: 98 | B125: 0.5345454545 | C125: 0.735 | D125: 3.514539375 | E125: 0.4241827928 | F125: 3.193834625 | G125: 1.719060508 | H125: 0.4440073479 | I125: 0.4361706473 | J125: 0.0006327980962 | K125: 0.03152298478 | L125: 0.03152298478 | M125: 0.03152298478 | P125: 27.85595121 | Q125: 0.2009168665 | R125: 0.2009153746 | S125: 0.2034758055 | T125: 0.03152298478 | U125: 0.03152298478 | V125: 0.03152298478 | W125: 0.03152298478 | Z125: 25.42167675 | AC125: 0.245 | AD125: 0 | AE125: 0 | AF125: 2.434274456
A126: 99 | B126: 0.54 | C126: 0.7425 | D126: 3.548335312 | E126: 0.4323581541 | F126: 3.227982177 | G126: 1.746591859 | H126: 0.4525457664 | I126: 0.4445657606 | J126: 0.0006389490711 | K126: 0.03215620292 | L126: 0.03215620292 | M126: 0.03215620292 | P126: 27.90140812 | Q126: 0.2048837641 | R126: 0.2048822435 | S126: 0.207492153 | T126: 0.03215620292 | U126: 0.03215620292 | V126: 0.03215620292 | W126: 0.03215620292 | Z126: 25.43009557 | AC126: 0.2475 | AD126: 0 | AE126: 0 | AF126: 2.471312552
A127: 100 | B127: 0.5454545455 | C127: 0.75 | D127: 3.58209375 | E127: 0.4406012932 | F127: 3.26209229 | G127: 1.774219269 | H127: 0.4611544201 | I127: 0.4530301453 | J127: 0.0006450932284 | K127: 0.0327954501 | L127: 0.0327954501 | M127: 0.0327954501 | P127: 27.94709005 | Q127: 0.2088863716 | R127: 0.2088848219 | S127: 0.2115446235 | T127: 0.0327954501 | U127: 0.0327954501 | V127: 0.0327954501 | W127: 0.0327954501 | Z127: 25.438593 | AC127: 0.25 | AD127: 0 | AE127: 0 | AF127: 2.508497055
A128: 101 | B128: 0.5509090909 | C128: 0.7575 | D128: 3.615814688 | E128: 0.4489119316 | F128: 3.296164958 | G128: 1.80194069 | H128: 0.4698330093 | I128: 0.4615635102 | J128: 0.0006512305682 | K128: 0.0334407184 | L128: 0.0334407184 | M128: 0.0334407184 | P128: 27.99299511 | Q128: 0.2129246012 | R128: 0.2129230222 | S128: 0.2156331275 | T128: 0.0334407184 | U128: 0.0334407184 | V128: 0.0334407184 | W128: 0.0334407184 | Z128: 25.44716891 | AC128: 0.2525 | AD128: 0 | AE128: 0 | AF128: 2.5458262
A129: 102 | B129: 0.5563636364 | C129: 0.765 | D129: 3.649498125 | E129: 0.4572897914 | F129: 3.330200175 | G129: 1.829754107 | H129: 0.4785812354 | I129: 0.4701655648 | J129: 0.0006573610904 | K129: 0.03409199991 | L129: 0.03409199991 | M129: 0.03409199991 | P129: 28.03912142 | Q129: 0.2169983654 | R129: 0.2169967568 | S129: 0.2197575759 | T129: 0.03409199991 | U129: 0.03409199991 | V129: 0.03409199991 | W129: 0.03409199991 | Z129: 25.45582318 | AC129: 0.255 | AD129: 0 | AE129: 0 | AF129: 2.583298244
A130: 103 | B130: 0.5618181818 | C130: 0.7725 | D130: 3.683144063 | E130: 0.4657345957 | F130: 3.364197935 | G130: 1.857657532 | H130: 0.4873988003 | I130: 0.4788360197 | J130: 0.000663484795 | K130: 0.03474928672 | L130: 0.03474928672 | M130: 0.03474928672 | P130: 28.08546712 | Q130: 0.2211075768 | R130: 0.2211059384 | S130: 0.2239178797 | T130: 0.03474928672 | U130: 0.03474928672 | V130: 0.03474928672 | W130: 0.03474928672 | Z130: 25.46455566 | AC130: 0.2575 | AD130: 0 | AE130: 0 | AF130: 2.620911465
A131: 104 | B131: 0.5672727273 | C131: 0.78 | D131: 3.7167525 | E131: 0.4742460682 | F131: 3.398158235 | G131: 1.885649012 | H131: 0.4962854071 | I131: 0.487574586 | J131: 0.0006696016821 | K131: 0.03541257093 | L131: 0.03541257093 | M131: 0.03541257093 | P131: 28.13203039 | Q131: 0.225252148 | R131: 0.2252504796 | S131: 0.2281139497 | T131: 0.03541257093 | U131: 0.03541257093 | V131: 0.03541257093 | W131: 0.03541257093 | Z131: 25.47336622 | AC131: 0.26 | AD131: 0 | AE131: 0 | AF131: 2.658664163
A132: 105 | B132: 0.5727272727 | C132: 0.7875 | D132: 3.750323437 | E132: 0.4828239333 | F132: 3.43208107 | G132: 1.91372662 | H132: 0.5052407593 | I132: 0.4963809756 | J132: 0.0006757117516 | K132: 0.03608184462 | L132: 0.03608184462 | M132: 0.03608184462 | P132: 28.1788094 | Q132: 0.2294319919 | R132: 0.2294302932 | S132: 0.2323456972 | T132: 0.03608184462 | U132: 0.03608184462 | V132: 0.03608184462 | W132: 0.03608184462 | Z132: 25.48225474 | AC132: 0.2625 | AD132: 0 | AE132: 0 | AF132: 2.69655466
A133: 106 | B133: 0.5781818182 | C133: 0.795 | D133: 3.783856875 | E133: 0.4914679161 | F133: 3.465966435 | G133: 1.941888462 | H133: 0.5142645617 | I133: 0.5052549014 | J133: 0.0006818150036 | K133: 0.03675709988 | L133: 0.03675709988 | M133: 0.03675709988 | P133: 28.22580236 | Q133: 0.2336470212 | R133: 0.233645292 | S133: 0.2366130333 | T133: 0.03675709988 | U133: 0.03675709988 | V133: 0.03675709988 | W133: 0.03675709988 | Z133: 25.49122106 | AC133: 0.265 | AD133: 0 | AE133: 0 | AF133: 2.734581299
A134: 107 | B134: 0.5836363636 | C134: 0.8025 | D134: 3.817352813 | E134: 0.5001777425 | F134: 3.499814329 | G134: 1.97013267 | H134: 0.5233565195 | I134: 0.5141960769 | J134: 0.000687911438 | K134: 0.03743832882 | L134: 0.03743832882 | M134: 0.03743832882 | P134: 28.27300752 | Q134: 0.237897149 | R134: 0.2378953891 | S134: 0.2409158695 | T134: 0.03743832882 | U134: 0.03743832882 | V134: 0.03743832882 | W134: 0.03743832882 | Z134: 25.50026508 | AC134: 0.2675 | AD134: 0 | AE134: 0 | AF134: 2.77274244
A135: 108 | B135: 0.5890909091 | C135: 0.81 | D135: 3.85081125 | E135: 0.5089531391 | F135: 3.533624748 | G135: 1.998457406 | H135: 0.5325163389 | I135: 0.5232042165 | J135: 0.0006940010548 | K135: 0.03812552352 | L135: 0.03812552352 | M135: 0.03812552352 | P135: 28.32042311 | Q135: 0.2421822884 | R135: 0.2421804975 | S135: 0.2452541172 | T135: 0.03812552352 | U135: 0.03812552352 | V135: 0.03812552352 | W135: 0.03812552352 | Z135: 25.50938664 | AC135: 0.27 | AD135: 0 | AE135: 0 | AF135: 2.811036468
A136: 109 | B136: 0.5945454545 | C136: 0.8175 | D136: 3.884232187 | E136: 0.5177938334 | F136: 3.567397688 | G136: 2.026860862 | H136: 0.5417437271 | I136: 0.5322790352 | J136: 0.0007000838541 | K136: 0.03881867609 | L136: 0.03881867609 | M136: 0.03881867609 | P136: 28.3680474 | Q136: 0.2465023526 | R136: 0.2465005305 | S136: 0.2496276879 | T136: 0.03881867609 | U136: 0.03881867609 | V136: 0.03881867609 | W136: 0.03881867609 | Z136: 25.51858562 | AC136: 0.2725 | AD136: 0 | AE136: 0 | AF136: 2.849461784
A137: 110 | B137: 0.6 | C137: 0.825 | D137: 3.917615625 | E137: 0.5266995532 | F137: 3.601133149 | G137: 2.055341253 | H137: 0.5510383917 | I137: 0.5414202489 | J137: 0.0007061598358 | K137: 0.03951777863 | L137: 0.03951777863 | M137: 0.03951777863 | P137: 28.4158787 | Q137: 0.2508572548 | R137: 0.2508554013 | S137: 0.2540364933 | T137: 0.03951777863 | U137: 0.03951777863 | V137: 0.03951777863 | W137: 0.03951777863 | Z137: 25.52786188 | AC137: 0.275 | AD137: 0 | AE137: 0 | AF137: 2.888016811
A138: 111 | B138: 0.6054545455 | C138: 0.8325 | D138: 3.950961562 | E138: 0.5356700275 | F138: 3.634831128 | G138: 2.083896827 | H138: 0.5604000415 | I138: 0.5506275744 | J138: 0.0007122289999 | K138: 0.04022282323 | L138: 0.04022282323 | M138: 0.04022282323 | P138: 28.46391529 | Q138: 0.2552469085 | R138: 0.2552450233 | S138: 0.2584804451 | T138: 0.04022282323 | U138: 0.04022282323 | V138: 0.04022282323 | W138: 0.04022282323 | Z138: 25.5372153 | AC138: 0.2775 | AD138: 0 | AE138: 0 | AF138: 2.92669999
A139: 112 | B139: 0.6109090909 | C139: 0.84 | D139: 3.98427 | E139: 0.5447049856 | F139: 3.668491622 | G139: 2.112525855 | H139: 0.5698283858 | I139: 0.559900729 | J139: 0.0007182913465 | K139: 0.040933802 | L139: 0.040933802 | M139: 0.040933802 | P139: 28.51215552 | Q139: 0.2596712272 | R139: 0.25966931 | S139: 0.2629594553 | T139: 0.040933802 | U139: 0.040933802 | V139: 0.040933802 | W139: 0.040933802 | Z139: 25.54664573 | AC139: 0.28 | AD139: 0 | AE139: 0 | AF139: 2.965509782
A140: 113 | B140: 0.6163636364 | C140: 0.8475 | D140: 4.017540937 | E140: 0.5538041578 | F140: 3.70211463 | G140: 2.141226635 | H140: 0.5793231351 | I140: 0.5692394309 | J140: 0.0007243468756 | K140: 0.04165070704 | L140: 0.04165070704 | M140: 0.04165070704 | P140: 28.56059772 | Q140: 0.2641301244 | R140: 0.2641281751 | S140: 0.2674734359 | T140: 0.04165070704 | U140: 0.04165070704 | V140: 0.04165070704 | W140: 0.04165070704 | Z140: 25.55615306 | AC140: 0.2825 | AD140: 0 | AE140: 0 | AF140: 3.004444667
A141: 114 | B141: 0.6218181818 | C141: 0.855 | D141: 4.050774375 | E141: 0.5629672751 | F141: 3.735700152 | G141: 2.169997493 | H141: 0.5888840002 | I141: 0.5786433992 | J141: 0.000730395587 | K141: 0.04237353046 | L141: 0.04237353046 | M141: 0.04237353046 | P141: 28.60924027 | Q141: 0.2686235139 | R141: 0.2686215323 | S141: 0.2720222988 | T141: 0.04237353046 | U141: 0.04237353046 | V141: 0.04237353046 | W141: 0.04237353046 | Z141: 25.56573713 | AC141: 0.285 | AD141: 0 | AE141: 0 | AF141: 3.04350314
A142: 115 | B142: 0.6272727273 | C142: 0.8625 | D142: 4.083970312 | E142: 0.572194069 | F142: 3.769248184 | G142: 2.198836779 | H142: 0.5985106931 | I142: 0.5881123536 | J142: 0.0007364374809 | K142: 0.04310226437 | L142: 0.04310226437 | M142: 0.04310226437 | P142: 28.65808154 | Q142: 0.2731513095 | R142: 0.2731492953 | S142: 0.2766059564 | T142: 0.04310226437 | U142: 0.04310226437 | V142: 0.04310226437 | W142: 0.04310226437 | Z142: 25.57539783 | AC142: 0.2875 | AD142: 0 | AE142: 0 | AF142: 3.082683719
A143: 116 | B143: 0.6327272727 | C143: 0.87 | D143: 4.11712875 | E143: 0.5814842719 | F143: 3.802758727 | G143: 2.227742868 | H143: 0.6082029265 | I143: 0.5976460145 | J143: 0.0007424725573 | K143: 0.04383690086 | L143: 0.04383690086 | M143: 0.04383690086 | P143: 28.70711995 | Q143: 0.2777134252 | R143: 0.2777113782 | S143: 0.281224321 | T143: 0.04383690086 | U143: 0.04383690086 | V143: 0.04383690086 | W143: 0.04383690086 | Z143: 25.58513501 | AC143: 0.29 | AD143: 0 | AE143: 0 | AF143: 3.121984938
A144: 117 | B144: 0.6381818182 | C144: 0.8775 | D144: 4.150249688 | E144: 0.5908376169 | F144: 3.836231778 | G144: 2.256714162 | H144: 0.6179604138 | I144: 0.6072441033 | J144: 0.000748500816 | K144: 0.04457743206 | L144: 0.04457743206 | M144: 0.04457743206 | P144: 28.7563539 | Q144: 0.2823097748 | R144: 0.2823076948 | S144: 0.2858773048 | T144: 0.04457743206 | U144: 0.04457743206 | V144: 0.04457743206 | W144: 0.04457743206 | Z144: 25.59494855 | AC144: 0.2925 | AD144: 0 | AE144: 0 | AF144: 3.161405346
A145: 118 | B145: 0.6436363636 | C145: 0.885 | D145: 4.183333125 | E145: 0.6002538377 | F145: 3.869667338 | G145: 2.285749085 | H145: 0.6277828693 | I145: 0.616906342 | J145: 0.0007545222573 | K145: 0.04532385006 | L145: 0.04532385006 | M145: 0.04532385006 | P145: 28.80578183 | Q145: 0.2869402727 | R145: 0.2869381594 | S145: 0.2905648206 | T145: 0.04532385006 | U145: 0.04532385006 | V145: 0.04532385006 | W145: 0.04532385006 | Z145: 25.60483832 | AC145: 0.295 | AD145: 0 | AE145: 0 | AF145: 3.200943514
A146: 119 | B146: 0.6490909091 | C146: 0.8925 | D146: 4.216379062 | E146: 0.6097326687 | F146: 3.903065405 | G146: 2.314846087 | H146: 0.6376700081 | I146: 0.6266324533 | J146: 0.0007605368809 | K146: 0.04607614699 | L146: 0.04607614699 | M146: 0.04607614699 | P146: 28.8554022 | Q146: 0.2916048329 | R146: 0.2916026861 | S146: 0.2952867808 | T146: 0.04607614699 | U146: 0.04607614699 | V146: 0.04607614699 | W146: 0.04607614699 | Z146: 25.61480418 | AC146: 0.2975 | AD146: 0 | AE146: 0 | AF146: 3.240598027
A147: 120 | B147: 0.6545454545 | C147: 0.9 | D147: 4.2493875 | E147: 0.6192738452 | F147: 3.936425979 | G147: 2.344003641 | H147: 0.647621546 | I147: 0.6364221608 | J147: 0.000766544687 | K147: 0.04683431496 | L147: 0.04683431496 | M147: 0.04683431496 | P147: 28.90521348 | Q147: 0.2963033698 | R147: 0.2963011894 | S147: 0.3000430982 | T147: 0.04683431496 | U147: 0.04683431496 | V147: 0.04683431496 | W147: 0.04683431496 | Z147: 25.62484599 | AC147: 0.3 | AD147: 0 | AE147: 0 | AF147: 3.280367488
A148: 121 | B148: 0.66 | C148: 0.9075 | D148: 4.282358438 | E148: 0.6288771029 | F148: 3.969749058 | G148: 2.373220243 | H148: 0.6576371996 | I148: 0.6462751889 | J148: 0.0007725456755 | K148: 0.04759834608 | L148: 0.04759834608 | M148: 0.04759834608 | P148: 28.95521416 | Q148: 0.3010357979 | R148: 0.3010335836 | S148: 0.3048336857 | T148: 0.04759834608 | U148: 0.04759834608 | V148: 0.04759834608 | W148: 0.04759834608 | Z148: 25.63496364 | AC148: 0.3025 | AD148: 0 | AE148: 0 | AF148: 3.320250516
A149: 122 | B149: 0.6654545455 | C149: 0.915 | D149: 4.315291875 | E149: 0.6385421785 | F149: 4.003034642 | G149: 2.402494412 | H149: 0.6677166864 | I149: 0.6561912625 | J149: 0.0007785398465 | K149: 0.04836823247 | L149: 0.04836823247 | M149: 0.04836823247 | P149: 29.00540273 | Q149: 0.3058020317 | R149: 0.3057997832 | S149: 0.3096584562 | T149: 0.04836823247 | U149: 0.04836823247 | V149: 0.04836823247 | W149: 0.04836823247 | Z149: 25.64515699 | AC149: 0.305 | AD149: 0 | AE149: 0 | AF149: 3.360245748
A150: 123 | B150: 0.6709090909 | C150: 0.9225 | D150: 4.348187812 | E150: 0.6482688093 | F150: 4.036282731 | G150: 2.431824692 | H150: 0.6778597246 | I150: 0.6661701075 | J150: 0.0007845271999 | K150: 0.04914396624 | L150: 0.04914396624 | M150: 0.04914396624 | P150: 29.05577773 | Q150: 0.3106019858 | R150: 0.3105997029 | S150: 0.3145173228 | T150: 0.04914396624 | U150: 0.04914396624 | V150: 0.04914396624 | W150: 0.04914396624 | Z150: 25.6554259 | AC150: 0.3075 | AD150: 0 | AE150: 0 | AF150: 3.400351834
A151: 124 | B151: 0.6763636364 | C151: 0.93 | D151: 4.38104625 | E151: 0.6580567331 | F151: 4.069493324 | G151: 2.461209647 | H151: 0.6880660332 | I151: 0.6762114503 | J151: 0.0007905077358 | K151: 0.04992553952 | L151: 0.04992553952 | M151: 0.04992553952 | P151: 29.10633768 | Q151: 0.315435575 | R151: 0.3154332575 | S151: 0.3194101985 | T151: 0.04992553952 | U151: 0.04992553952 | V151: 0.04992553952 | W151: 0.04992553952 | Z151: 25.66577024 | AC151: 0.31 | AD151: 0 | AE151: 0 | AF151: 3.440567443
A152: 125 | B152: 0.6818181818 | C152: 0.9375 | D152: 4.413867188 | E152: 0.6679056886 | F152: 4.102666421 | G152: 2.490647863 | H152: 0.6983353319 | I152: 0.6863150184 | J152: 0.000796481454 | K152: 0.05071294443 | L152: 0.05071294443 | M152: 0.05071294443 | P152: 29.15708114 | Q152: 0.320302714 | R152: 0.3203003618 | S152: 0.3243369967 | T152: 0.05071294443 | U152: 0.05071294443 | V152: 0.05071294443 | W152: 0.05071294443 | Z152: 25.67618988 | AC152: 0.3125 | AD152: 0 | AE152: 0 | AF152: 3.480891258
A153: 126 | B153: 0.6872727273 | C153: 0.945 | D153: 4.446650625 | E153: 0.6778154152 | F153: 4.135802021 | G153: 2.520137949 | H153: 0.7086673414 | I153: 0.6964805397 | J153: 0.0008024483548 | K153: 0.05150617309 | L153: 0.05150617309 | M153: 0.05150617309 | P153: 29.20800668 | Q153: 0.3252033179 | R153: 0.3252009307 | S153: 0.3292976308 | T153: 0.05150617309 | U153: 0.05150617309 | V153: 0.05150617309 | W153: 0.05150617309 | Z153: 25.6866847 | AC153: 0.315 | AD153: 0 | AE153: 0 | AF153: 3.521321978
A154: 127 | B154: 0.6927272727 | C154: 0.9525 | D154: 4.479396562 | E154: 0.6877856529 | F154: 4.168900124 | G154: 2.549678534 | H154: 0.719061783 | I154: 0.706707743 | J154: 0.0008084084379 | K154: 0.05230521762 | L154: 0.05230521762 | M154: 0.05230521762 | P154: 29.25911287 | Q154: 0.3301373017 | R154: 0.3301348792 | S154: 0.3342920141 | T154: 0.05230521762 | U154: 0.05230521762 | V154: 0.05230521762 | W154: 0.05230521762 | Z154: 25.69725456 | AC154: 0.3175 | AD154: 0 | AE154: 0 | AF154: 3.561858318
A155: 128 | B155: =($AD$11/2000)*(A155) -> 0.6981818182 | C155: =$AD$13*B155*10^-3/($AD$4*10^-6) -> 0.96 | D155: 4.512105 | E155: 0.6978161424 | F155: 4.201960729 | G155: 2.579268269 | H155: 0.7295183788 | I155: 0.7169963578 | J155: 0.0008143617035 | K155: 0.05311007015 | L155: 0.05311007015 | M155: 0.05311007015 | P155: 29.31039833 | Q155: 0.3351045806 | R155: 0.3351021226 | S155: 0.3393200602 | T155: 0.05311007015 | U155: 0.05311007015 | V155: 0.05311007015 | W155: 0.05311007015 | Z155: 25.70789932 | AC155: =IF(C155>=$AD$6,C155,0)/$AD$5 -> 0.32 | AD155: =IF(C155>=$AD$8,$AD$7,0) -> 0 | AE155: =IF(C155>$AD$10,($AD$9/C155),0) -> 0 | AF155: =(P155-Z155)*IF((Vcc_max-C155)>$F$4,1,0) -> 3.602499007
A156: 129 | B156: 0.7036363636 | C156: 0.9675 | D156: =IF(OR(P155>=160,AF155>=60,D155=0),0, (Vcc_max-C156)*($AD$13+IF(C156>=$AD$8,$AD$7,0)+(IF(C156>=$AD$6,C156,0)/$AD$5)+IF(C156>$AD$10,($AD$9/C156),0))) -> 4.544775938 | E156: =(D155+((((EXP(-(B156-B155)*10^-3/$F$14)))*(E155-D155)))) -> 0.7079066251 | F156: =(D155+((((EXP(-(B156-B155)*10^-3/$F$15)))*(F155-D155)))) -> 4.234983837 | G156: =(D155+((((EXP(-(B156-B155)*10^-3/$F$16)))*(G155-D155)))) -> 2.608905826 | H156: =(D155+((((EXP(-(B156-B155)*10^-3/$F$17)))*(H155-D155)))) -> 0.7400368516 | I156: =(D155+((((EXP(-(B156-B155)*10^-3/$F$18)))*(I155-D155)))) -> 0.7273461144 | J156: =(D155+((((EXP(-(B156-B155)*10^-3/$F$19)))*(JW155-D155)))) -> 0.0008203081515 | K156: =(D155+((((EXP(-(B156-B155)*10^-3/$F$20)))*(K155-D155)))) -> 0.0539207228 | L156: =(D155+((((EXP(-(B156-B155)*10^-3/$F$21)))*(L155-D155)))) -> 0.0539207228 | M156: =(D155+((((EXP(-(B156-B155)*10^-3/$F$22)))*(M155-D155)))) -> 0.0539207228 | P156: 29.36186165 | Q156: =(D155+((((EXP(-(B156-B155)*10^-3/$B$14)))*(Q155-D155)))) -> 0.3401050697 | R156: =(D155+((((EXP(-(B156-B155)*10^-3/$B$15)))*(R155-D155)))) -> 0.3401025761 | S156: =(D155+((((EXP(-(B156-B155)*10^-3/$B$16)))*(S155-D155)))) -> 0.344381683 | T156: =(D155+((((EXP(-(B156-B155)*10^-3/$B$17)))*(T155-D155)))) -> 0.0539207228 | U156: =(D155+((((EXP(-(B156-B155)*10^-3/$B$18)))*(U155-D155)))) -> 0.0539207228 | V156: 0.0539207228 | W156: 0.0539207228 | Z156: 25.71861886 | AC156: 0.3225 | AD156: 0 | AE156: 0 | AF156: 3.643242788
A157: 130 | B157: 0.7090909091 | C157: 0.975 | D157: 4.577409375 | E157: 0.7180568431 | F157: 4.267969447 | G157: 2.638589895 | H157: 0.7506169252 | I157: 0.7377567438 | J157: 0.000826247782 | K157: 0.05473716771 | L157: 0.05473716771 | M157: 0.05473716771 | P157: =$C$6+(E157*$G$14)+(F157*$G$15)+(G157*$G$16)+(H157*$G$17)+(I157*$G$18)+(J157*$G$19)+(K157*$G$20)+(L157*$G$21)+(M157*$G$22) -> 29.41350146 | Q157: 0.3451386844 | R157: 0.3451361549 | S157: 0.349476796 | T157: 0.05473716771 | U157: 0.05473716771 | V157: =(D156+((((EXP(-(B157-B156)*10^-3/$B$19)))*(V156-D156)))) -> 0.05473716771 | W157: =(D156+((((EXP(-(B157-B156)*10^-3/$B$20)))*(W156-D156)))) -> 0.05473716771 | Z157: =$C$6+(Q157*$C$14)+(R157*$C$15)+(S157*$C$16)+(T157*$C$17)+(U157*$C$18)+(V157*$C$19)+(W157*$C$20) -> 25.72941304 | AC157: 0.325 | AD157: 0 | AE157: 0 | AF157: 3.684088421
A158: 131 | B158: 0.7145454545 | C158: 0.9825 | D158: 4.610005312 | E158: 0.7282665392 | F158: 4.300917559 | G158: 2.668319189 | H158: 0.7612583239 | I158: 0.7482279777 | J158: 0.0008321805949 | K158: 0.055559397 | L158: 0.055559397 | M158: 0.055559397 | P158: 29.46531642 | Q158: 0.3502053402 | R158: 0.3502027747 | S158: 0.3546053133 | T158: 0.055559397 | U158: 0.055559397 | V158: 0.055559397 | W158: 0.055559397 | Z158: 25.74028174 | AC158: 0.3275 | AD158: 0 | AE158: 0 | AF158: 3.725034678
A159: 132 | B159: 0.72 | C159: 0.99 | D159: 4.64256375 | E159: 0.7385354568 | F159: 4.333828173 | G159: 2.69809244 | H159: 0.771960773 | I159: 0.7587595485 | J159: 0.0008381065903 | K159: 0.0563874028 | L159: 0.0563874028 | M159: 0.0563874028 | P159: 29.51730517 | Q159: 0.3553049527 | R159: 0.3553023508 | S159: 0.3597671488 | T159: 0.0563874028 | U159: 0.0563874028 | V159: 0.0563874028 | W159: 0.0563874028 | Z159: 25.75122483 | AC159: 0.33 | AD159: 0 | AE159: 0 | AF159: 3.766080346
A160: 133 | B160: 0.7254545455 | C160: 0.9975 | D160: 4.675084688 | E160: 0.74886334 | F160: 4.366701288 | G160: 2.727908397 | H160: 0.7827239984 | I160: 0.7693511895 | J160: 0.0008440257681 | K160: 0.05722117724 | L160: 0.05722117724 | M160: 0.05722117724 | P160: 29.56946639 | Q160: 0.3604374374 | R160: 0.3604347991 | S160: 0.3649622165 | T160: 0.05722117724 | U160: 0.05722117724 | V160: 0.05722117724 | W160: 0.05722117724 | Z160: 25.76224216 | AC160: 0.3325 | AD160: 0 | AE160: 0 | AF160: 3.807224227
A161: 134 | B161: 0.7309090909 | C161: 1.005 | D161: 4.707568125 | E161: 0.7592499337 | F161: 4.399536904 | G161: 2.757765832 | H161: 0.7935477267 | I161: 0.7800026345 | J161: 0.0008499381283 | K161: 0.05806071246 | L161: 0.05806071246 | M161: 0.05806071246 | P161: 29.62179876 | Q161: 0.3656027102 | R161: 0.3656000351 | S161: 0.3701904308 | T161: 0.05806071246 | U161: 0.05806071246 | V161: 0.05806071246 | W161: 0.05806071246 | Z161: 25.77333362 | AC161: 0.335 | AD161: 0 | AE161: 0 | AF161: 3.848465135
A162: 135 | B162: 0.7363636364 | C162: 1.0125 | D162: 4.740014063 | E162: 0.7696949833 | F162: 4.432335022 | G162: 2.787663534 | H162: 0.8044316856 | I162: 0.7907136182 | J162: 0.0008558436709 | K162: 0.0589060006 | L162: 0.0589060006 | M162: 0.0589060006 | P162: 29.67430097 | Q162: 0.3708006869 | R162: 0.3707979749 | S162: 0.3754517059 | T162: 0.0589060006 | U162: 0.0589060006 | V162: 0.0589060006 | W162: 0.0589060006 | Z162: 25.78449907 | AC162: 0.3375 | AD162: 0 | AE162: 0 | AF162: 3.8898019
A163: 136 | B163: 0.7418181818 | C163: 1.02 | D163: 4.7724225 | E163: 0.7801982351 | F163: 4.46509564 | G163: 2.817600309 | H163: 0.8153756032 | I163: 0.801483876 | J163: 0.000861742396 | K163: 0.05975703379 | L163: 0.05975703379 | M163: 0.05975703379 | P163: 29.72697175 | Q163: 0.3760312834 | R163: 0.3760285343 | S163: 0.3807459563 | T163: 0.05975703379 | U163: 0.05975703379 | V163: 0.05975703379 | W163: 0.05975703379 | Z163: 25.79573838 | AC163: 0.34 | AD163: 0 | AE163: 0 | AF163: 3.931233361
A164: 137 | B164: 0.7472727273 | C164: 1.0275 | D164: 4.804793437 | E164: 0.7907594357 | F164: 4.49781876 | G164: 2.847574984 | H164: 0.8263792086 | I164: 0.8123131439 | J164: 0.0008676343036 | K164: 0.06061380416 | L164: 0.06061380416 | M164: 0.06061380416 | P164: 29.7798098 | Q164: 0.3812944159 | R164: 0.3812916294 | S164: 0.3860730963 | T164: 0.06061380416 | U164: 0.06061380416 | V164: 0.06061380416 | W164: 0.06061380416 | Z164: 25.80705143 | AC164: 0.3425 | AD164: 0 | AE164: 0 | AF164: 3.972758376
A165: 138 | B165: 0.7527272727 | C165: 1.035 | D165: 4.837126875 | E165: 0.8013783328 | F165: 4.53050438 | G165: 2.877586402 | H165: 0.8374422314 | I165: 0.8232011588 | J165: 0.0008735193936 | K165: 0.06147630387 | L165: 0.06147630387 | M165: 0.06147630387 | P165: 29.83281388 | Q165: 0.3865900004 | R165: 0.3865871763 | S165: 0.3914330407 | T165: 0.06147630387 | U165: 0.06147630387 | V165: 0.06147630387 | W165: 0.06147630387 | Z165: 25.81843807 | AC165: 0.345 | AD165: 0 | AE165: 0 | AF165: 4.01437581
A166: 139 | B166: 0.7581818182 | C166: 1.0425 | D166: 4.869422812 | E166: 0.8120546744 | F166: 4.563152501 | G166: 2.907633426 | H166: 0.8485644021 | I166: 0.8341476581 | J166: 0.000879397666 | K166: 0.06234452504 | L166: 0.06234452504 | M166: 0.06234452504 | P166: 29.88598273 | Q166: 0.3919179532 | R166: 0.3919150914 | S166: 0.3968257042 | T166: 0.06234452504 | U166: 0.06234452504 | V166: 0.06234452504 | W166: 0.06234452504 | Z166: 25.82989818 | AC166: 0.3475 | AD166: 0 | AE166: 0 | AF166: 4.056084546
A167: 140 | B167: 0.7636363636 | C167: 1.05 | D167: 4.90168125 | E167: 0.8227882094 | F167: 4.595763123 | G167: 2.937714934 | H167: 0.8597454521 | I167: 0.8451523802 | J167: 0.0008852691208 | K167: 0.06321845982 | L167: 0.06321845982 | M167: 0.06321845982 | P167: 29.93931511 | Q167: 0.3972781907 | R167: 0.397275291 | S167: 0.4022510016 | T167: 0.06321845982 | U167: 0.06321845982 | V167: 0.06321845982 | W167: 0.06321845982 | Z167: 25.84143163 | AC167: 0.35 | AD167: 0 | AE167: 0 | AF167: 4.097883477
A168: 141 | B168: 0.7690909091 | C168: 1.0575 | D168: 4.933902188 | E168: 0.8335786873 | F168: 4.628336246 | G168: 2.967829823 | H168: 0.8709851132 | I168: 0.8562150639 | J168: 0.0008911337581 | K168: 0.06409810036 | L168: 0.06409810036 | M168: 0.06409810036 | P168: 29.9928098 | Q168: 0.4026706293 | R168: 0.4026676914 | S168: 0.4077088478 | T168: 0.06409810036 | U168: 0.06409810036 | V168: 0.06409810036 | W168: 0.06409810036 | Z168: 25.85303829 | AC168: 0.3525 | AD168: 0 | AE168: 0 | AF168: 4.139771507
A169: 142 | B169: 0.7745454545 | C169: 1.065 | D169: 4.966085625 | E169: 0.8444258583 | F169: 4.660871869 | G169: 2.997977004 | H169: 0.8822831183 | I169: 0.8673354489 | J169: 0.0008969915778 | K169: 0.0649834388 | L169: 0.0649834388 | M169: 0.0649834388 | P169: 30.04646559 | Q169: 0.4080951856 | R169: 0.4080922094 | S169: 0.4131991578 | T169: 0.0649834388 | U169: 0.0649834388 | V169: 0.0649834388 | W169: 0.0649834388 | Z169: 25.86471803 | AC169: 0.355 | AD169: 0 | AE169: 0 | AF169: 4.181747557
A170: 143 | B170: 0.78 | C170: 1.0725 | D170: 4.998231563 | E170: 0.8553294731 | F170: 4.693369992 | G170: 3.02815541 | H170: 0.8936392008 | I170: 0.8785132756 | J170: 0.00090284258 | K170: 0.06587446728 | L170: 0.06587446728 | M170: 0.06587446728 | P170: 30.10028128 | Q170: 0.4135517763 | R170: 0.4135487615 | S170: 0.4187218468 | T170: 0.06587446728 | U170: 0.06587446728 | V170: 0.06587446728 | W170: 0.06587446728 | Z170: 25.87647072 | AC170: 0.3575 | AD170: 0 | AE170: 0 | AF170: 4.223810554
A171: 144 | B171: 0.7854545455 | C171: 1.08 | D171: 5.03034 | E171: 0.8662892833 | F171: 4.725830616 | G171: 3.058363985 | H171: 0.905053095 | I171: 0.8897482851 | J171: 0.0009086867646 | K171: 0.06677117796 | L171: 0.06677117796 | M171: 0.06677117796 | P171: 30.15425568 | Q171: 0.4190403181 | R171: 0.4190372646 | S171: 0.4242768301 | T171: 0.06677117796 | U171: 0.06677117796 | V171: 0.06677117796 | W171: 0.06677117796 | Z171: 25.88829623 | AC171: 0.36 | AD171: 0 | AE171: 0 | AF171: 4.265959443
A172: 145 | B172: 0.7909090909 | C172: 1.0875 | D172: 5.062410938 | E172: 0.877305041 | F172: 4.758253741 | G172: 3.088601691 | H172: 0.9165245357 | I172: 0.9010402191 | J172: 0.0009145241317 | K172: 0.06767356298 | L172: 0.06767356298 | M172: 0.06767356298 | P172: 30.20838761 | Q172: 0.4245607279 | R172: 0.4245576353 | S172: 0.4298640229 | T172: 0.06767356298 | U172: 0.06767356298 | V172: 0.06767356298 | W172: 0.06767356298 | Z172: 25.90019443 | AC172: 0.3625 | AD172: 0 | AE172: 0 | AF172: 4.308193175
A173: 146 | B173: 0.7963636364 | C173: 1.095 | D173: 5.094444375 | E173: 0.8883764989 | F173: 4.790639365 | G173: 3.118867508 | H173: 0.9280532587 | I173: 0.9123888202 | J173: 0.0009203546811 | K173: 0.0685816145 | L173: 0.0685816145 | M173: 0.0685816145 | P173: 30.26267591 | Q173: 0.4301129225 | R173: 0.4301097909 | S173: 0.4354833407 | T173: 0.0685816145 | U173: 0.0685816145 | V173: 0.0685816145 | W173: 0.0685816145 | Z173: 25.91216519 | AC173: 0.365 | AD173: 0 | AE173: 0 | AF173: 4.350510718
A174: 147 | B174: 0.8018181818 | C174: 1.1025 | D174: 5.126440313 | E174: 0.8995034106 | F174: 4.82298749 | G174: 3.149160429 | H174: 0.9396390005 | I174: 0.9237938315 | J174: 0.000926178413 | K174: 0.06949532466 | L174: 0.06949532466 | M174: 0.06949532466 | P174: 30.31711943 | Q174: 0.4356968192 | R174: 0.4356936481 | S174: 0.4411346991 | T174: 0.06949532466 | U174: 0.06949532466 | V174: 0.06949532466 | W174: 0.06949532466 | Z174: 25.92420838 | AC174: 0.3675 | AD174: 0 | AE174: 0 | AF174: 4.392911046
A175: 148 | B175: 0.8072727273 | C175: 1.11 | D175: 5.15839875 | E175: 0.9106855301 | F175: 4.855298115 | G175: 3.179479464 | H175: 0.9512814982 | I175: 0.935254997 | J175: 0.0009319953274 | K175: 0.07041468562 | L175: 0.07041468562 | M175: 0.07041468562 | P175: 30.37171702 | Q175: 0.4413123349 | R175: 0.4413091244 | S175: 0.4468180136 | T175: 0.07041468562 | U175: 0.07041468562 | V175: 0.07041468562 | W175: 0.07041468562 | Z175: 25.93632388 | AC175: 0.37 | AD175: 0 | AE175: 0 | AF175: 4.43539315
A176: 149 | B176: 0.8127272727 | C176: 1.1175 | D176: 5.190319688 | E176: 0.9219226121 | F176: 4.887571241 | G176: 3.209823637 | H176: 0.9629804896 | I176: 0.9467720613 | J176: 0.0009378054242 | K176: 0.07133968954 | L176: 0.07133968954 | M176: 0.07133968954 | P176: 30.42646756 | Q176: 0.4469593871 | R176: 0.4469561368 | S176: 0.4525332001 | T176: 0.07133968954 | U176: 0.07133968954 | V176: 0.07133968954 | W176: 0.07133968954 | Z176: 25.94851154 | AC176: 0.3725 | AD176: 0 | AE176: 0 | AF176: 4.477956026
A177: 150 | B177: 0.8181818182 | C177: 1.125 | D177: 5.222203125 | E177: 0.9332144121 | F177: 4.919806867 | G177: 3.240191988 | H177: 0.9747357135 | I177: 0.9583447695 | J177: 0.0009436087034 | K177: 0.07227032857 | L177: 0.07227032857 | M177: 0.07227032857 | P177: 30.48136993 | Q177: 0.452637893 | R177: 0.4526346027 | S177: 0.4582801744 | T177: 0.07227032857 | U177: 0.07227032857 | V177: 0.07227032857 | W177: 0.07227032857 | Z177: 25.96077124 | AC177: 0.375 | AD177: 0 | AE177: 0 | AF177: 4.520598687
A178: 151 | B178: 0.8236363636 | C178: 1.1325 | D178: 5.254049062 | E178: 0.9445606861 | F178: 4.952004992 | G178: 3.27058357 | H178: 0.9865469091 | I178: 0.9699728678 | J178: 0.0009494051651 | K178: 0.07320659487 | L178: 0.07320659487 | M178: 0.07320659487 | P178: 30.53642301 | Q178: 0.4583477701 | R178: 0.4583444397 | S178: 0.4640588524 | T178: 0.07320659487 | U178: 0.07320659487 | V178: 0.07320659487 | W178: 0.07320659487 | Z178: 25.97310286 | AC178: 0.3775 | AD178: 0 | AE178: 0 | AF178: 4.563320152
A179: 152 | B179: 0.8290909091 | C179: 1.14 | D179: 5.2858575 | E179: 0.9559611908 | F179: 4.984165619 | G179: 3.300997453 | H179: 0.9984138166 | I179: 0.9816561027 | J179: 0.0009551948092 | K179: 0.0741484806 | L179: 0.0741484806 | M179: 0.0741484806 | P179: 30.59162572 | Q179: 0.4640889359 | R179: 0.4640855652 | S179: 0.4698691502 | T179: 0.0741484806 | U179: 0.0741484806 | V179: 0.0741484806 | W179: 0.0741484806 | Z179: 25.98550626 | AC179: 0.38 | AD179: 0 | AE179: 0 | AF179: 4.606119453
A180: 153 | B180: 0.8345454545 | C180: 1.1475 | D180: 5.317628437 | E180: 0.9674156834 | F180: 5.016288745 | G180: 3.33143272 | H180: 1.010336177 | I180: 0.9933942217 | J180: 0.0009609776357 | K180: 0.07509597792 | L180: 0.07509597792 | M180: 0.07509597792 | P180: 30.64697695 | Q180: 0.4698613081 | R180: 0.4698578969 | S180: 0.475710984 | T180: 0.07509597792 | U180: 0.07509597792 | V180: 0.07509597792 | W180: 0.07509597792 | Z180: 25.99798132 | AC180: 0.3825 | AD180: 0 | AE180: 0 | AF180: 4.648995631
A181: 154 | B181: 0.84 | C181: 1.155 | D181: 5.349361875 | E181: 0.9789239221 | F181: 5.048374371 | G181: 3.361888467 | H181: 1.022313731 | I181: 1.005186973 | J181: 0.0009667536447 | K181: 0.07604907899 | L181: 0.07604907899 | M181: 0.07604907899 | P181: 30.70247565 | Q181: 0.4756648045 | R181: 0.4756613525 | S181: 0.4815842701 | T181: 0.07604907899 | U181: 0.07604907899 | V181: 0.07604907899 | W181: 0.07604907899 | Z181: 26.01052791 | AC181: 0.385 | AD181: 0 | AE181: 0 | AF181: 4.69194774
A182: 155 | B182: 0.8454545455 | C182: 1.1625 | D182: 5.381057812 | E182: 0.9904856654 | F182: 5.080422498 | G182: 3.392363807 | H182: 1.034346222 | I182: 1.017034105 | J182: 0.0009725228362 | K182: 0.07700777598 | L182: 0.07700777598 | M182: 0.07700777598 | P182: 30.75812073 | Q182: 0.4814993429 | R182: 0.48149585 | S182: 0.4874889246 | T182: 0.07700777598 | U182: 0.07700777598 | V182: 0.07700777598 | W182: 0.07700777598 | Z182: 26.02314589 | AC182: 0.3875 | AD182: 0 | AE182: 0 | AF182: 4.734974841
A183: 156 | B183: 0.8509090909 | C183: 1.17 | D183: 5.41271625 | E183: 1.002100673 | F183: 5.112433124 | G183: 3.422857862 | H183: 1.046433392 | I183: 1.028935367 | J183: 0.00097828521 | K183: 0.07797206105 | L183: 0.07797206105 | M183: 0.07797206105 | P183: 30.81391114 | Q183: 0.4873648411 | R183: 0.4873613071 | S183: 0.4934248643 | T183: 0.07797206105 | U183: 0.07797206105 | V183: 0.07797206105 | W183: 0.07797206105 | Z183: 26.03583513 | AC183: 0.39 | AD183: 0 | AE183: 0 | AF183: 4.778076007
A184: 157 | B184: 0.8563636364 | C184: 1.1775 | D184: 5.444337188 | E184: 1.013768703 | F184: 5.144406251 | G184: 3.453369772 | H184: 1.058574985 | I184: 1.04089051 | J184: 0.0009840407663 | K184: 0.07894192636 | L184: 0.07894192636 | M184: 0.07894192636 | P184: 30.86984584 | Q184: 0.4932612174 | R184: 0.4932576421 | S184: 0.4993920055 | T184: 0.07894192636 | U184: 0.07894192636 | V184: 0.07894192636 | W184: 0.07894192636 | Z184: 26.04859552 | AC184: 0.3925 | AD184: 0 | AE184: 0 | AF184: 4.82125032
A185: 158 | B185: 0.8618181818 | C185: 1.185 | D185: 5.475920625 | E185: 1.025489519 | F185: 5.176341878 | G185: 3.483898687 | H185: 1.070770745 | I185: 1.052899284 | J185: 0.000989789505 | K185: 0.07991736409 | L185: 0.07991736409 | M185: 0.07991736409 | P185: 30.92592379 | Q185: 0.4991883897 | R185: 0.499184773 | S185: 0.505390265 | T185: 0.07991736409 | U185: 0.07991736409 | V185: 0.07991736409 | W185: 0.07991736409 | Z185: 26.06142692 | AC185: 0.395 | AD185: 0 | AE185: 0 | AF185: 4.864496873
A186: 159 | B186: 0.8672727273 | C186: 1.1925 | D186: 5.507466563 | E186: 1.037262879 | F186: 5.208240005 | G186: 3.514443772 | H186: 1.083020419 | I186: 1.06496144 | J186: 0.0009955314262 | K186: 0.08089836641 | L186: 0.08089836641 | M186: 0.08089836641 | P186: 30.98214397 | Q186: 0.5051462765 | R186: 0.5051426181 | S186: 0.5114195595 | T186: 0.08089836641 | U186: 0.08089836641 | V186: 0.08089836641 | W186: 0.08089836641 | Z186: 26.0743292 | AC186: 0.3975 | AD186: 0 | AE186: 0 | AF186: 4.907814766
A187: 160 | B187: 0.8727272727 | C187: 1.2 | D187: 5.538975 | E187: 1.049088547 | F187: 5.240100632 | G187: 3.545004204 | H187: 1.09532375 | I187: 1.077076731 | J187: 0.00100126653 | K187: 0.08188492548 | L187: 0.08188492548 | M187: 0.08188492548 | P187: 31.03850535 | Q187: 0.5111347959 | R187: 0.5111310956 | S187: 0.517479806 | T187: 0.08188492548 | U187: 0.08188492548 | V187: 0.08188492548 | W187: 0.08188492548 | Z187: 26.08730223 | AC187: 0.4 | AD187: 0 | AE187: 0 | AF187: 4.951203112
A188: 161 | B188: 0.8781818182 | C188: 1.2075 | D188: 5.570445938 | E188: 1.060966284 | F188: 5.271923759 | G188: 3.575579173 | H188: 1.107680486 | I188: 1.08924491 | J188: 0.001006994816 | K188: 0.08287703349 | L188: 0.08287703349 | M188: 0.08287703349 | P188: 31.09500692 | Q188: 0.5171538664 | R188: 0.5171501241 | S188: 0.5235709213 | T188: 0.08287703349 | U188: 0.08287703349 | V188: 0.08287703349 | W188: 0.08287703349 | Z188: 26.10034589 | AC188: 0.4025 | AD188: 0 | AE188: 0 | AF188: 4.994661031
A189: 162 | B189: 0.8836363636 | C189: 1.215 | D189: 5.601879375 | E189: 1.072895855 | F189: 5.303709386 | G189: 3.60616788 | H189: 1.120090374 | I189: 1.10146573 | J189: 0.001012716284 | K189: 0.08387468259 | L189: 0.08387468259 | M189: 0.08387468259 | P189: 31.1516477 | Q189: 0.5232034066 | R189: 0.5231996221 | S189: 0.5296928225 | T189: 0.08387468259 | U189: 0.08387468259 | V189: 0.08387468259 | W189: 0.08387468259 | Z189: 26.11346005 | AC189: 0.405 | AD189: 0 | AE189: 0 | AF189: 5.038187653
A190: 163 | B190: 0.8890909091 | C190: 1.2225 | D190: 5.633275312 | E190: 1.084877021 | F190: 5.335457513 | G190: 3.636769539 | H190: 1.132553163 | I190: 1.113738946 | J190: 0.001018430935 | K190: 0.08487786497 | L190: 0.08487786497 | M190: 0.08487786497 | P190: 31.20842669 | Q190: 0.5292833351 | R190: 0.5292795082 | S190: 0.5358454268 | T190: 0.08487786497 | U190: 0.08487786497 | V190: 0.08487786497 | W190: 0.08487786497 | Z190: 26.12664457 | AC190: 0.4075 | AD190: 0 | AE190: 0 | AF190: 5.081782116
A191: 164 | B191: 0.8945454545 | C191: 1.23 | D191: 5.66463375 | E191: 1.096909548 | F191: 5.36716814 | G191: 3.667383378 | H191: 1.145068599 | I191: 1.126064311 | J191: 0.001024138769 | K191: 0.0858865728 | L191: 0.0858865728 | M191: 0.0858865728 | P191: 31.26534291 | Q191: 0.5353935706 | R191: 0.5353897011 | S191: 0.5420286515 | T191: 0.0858865728 | U191: 0.0858865728 | V191: 0.0858865728 | W191: 0.0858865728 | Z191: 26.13989934 | AC191: 0.41 | AD191: 0 | AE191: 0 | AF191: 5.125443569
A192: 165 | B192: 0.9 | C192: 1.2375 | D192: 5.695954688 | E192: 1.108993201 | F192: 5.398841267 | G192: 3.698008635 | H192: 1.157636434 | I192: 1.138441583 | J192: 0.001029839784 | K192: 0.08690079826 | L192: 0.08690079826 | M192: 0.08690079826 | P192: 31.32239538 | Q192: 0.541534032 | R192: 0.5415301197 | S192: 0.548242414 | T192: 0.08690079826 | U192: 0.08690079826 | V192: 0.08690079826 | W192: 0.08690079826 | Z192: 26.15322421 | AC192: 0.4125 | AD192: 0 | AE192: 0 | AF192: 5.169171167
A193: 166 | B193: 0.9054545455 | C193: 1.245 | D193: 5.727238125 | E193: 1.121127745 | F193: 5.430476894 | G193: 3.728644558 | H193: 1.170256417 | I193: 1.150870516 | J193: 0.001035533983 | K193: 0.08792053354 | L193: 0.08792053354 | M193: 0.08792053354 | P193: 31.37958315 | Q193: 0.5477046381 | R193: 0.5477006829 | S193: 0.5544866317 | T193: 0.08792053354 | U193: 0.08792053354 | V193: 0.08792053354 | W193: 0.08792053354 | Z193: 26.16661908 | AC193: 0.415 | AD193: 0 | AE193: 0 | AF193: 5.212964077
A194: 167 | B194: 0.9109090909 | C194: 1.2525 | D194: 5.758484063 | E194: 1.133312946 | F194: 5.462075022 | G194: 3.759290411 | H194: 1.182928298 | I194: 1.163350867 | J194: 0.001041221363 | K194: 0.0889457708 | L194: 0.0889457708 | M194: 0.0889457708 | P194: 31.43690527 | Q194: 0.553905308 | R194: 0.5539013097 | S194: 0.5607612221 | T194: 0.0889457708 | U194: 0.0889457708 | V194: 0.0889457708 | W194: 0.0889457708 | Z194: 26.1800838 | AC194: 0.4175 | AD194: 0 | AE194: 0 | AF194: 5.256821473
A195: 168 | B195: 0.9163636364 | C195: 1.26 | D195: 5.7896925 | E195: 1.145548571 | F195: 5.493635649 | G195: 3.789945465 | H195: 1.195651829 | I195: 1.175882395 | J195: 0.001046901926 | K195: 0.08997650224 | L195: 0.08997650224 | M195: 0.08997650224 | P195: 31.49436078 | Q195: 0.5601359608 | R195: 0.5601319192 | S195: 0.567066103 | T195: 0.08997650224 | U195: 0.08997650224 | V195: 0.08997650224 | W195: 0.08997650224 | Z195: 26.19361824 | AC195: 0.42 | AD195: 0 | AE195: 0 | AF195: 5.300742536
A196: 169 | B196: 0.9218181818 | C196: 1.2675 | D196: 5.820863437 | E196: 1.157834388 | F196: 5.525158776 | G196: 3.820609005 | H196: 1.208426762 | I196: 1.188464858 | J196: 0.001052575672 | K196: 0.09101272004 | L196: 0.09101272004 | M196: 0.09101272004 | P196: 31.55194875 | Q196: 0.5663965157 | R196: 0.5663924306 | S196: 0.5734011921 | T196: 0.09101272004 | U196: 0.09101272004 | V196: 0.09101272004 | W196: 0.09101272004 | Z196: 26.20722229 | AC196: 0.4225 | AD196: 0 | AE196: 0 | AF196: 5.344726459
A197: 170 | B197: 0.9272727273 | C197: 1.275 | D197: 5.851996875 | E197: 1.170170164 | F197: 5.556644404 | G197: 3.851280324 | H197: 1.221252851 | I197: 1.201098013 | J197: 0.0010582426 | K197: 0.09205441637 | L197: 0.09205441637 | M197: 0.09205441637 | P197: 31.60966825 | Q197: 0.5726868921 | R197: 0.5726827633 | S197: 0.5797664073 | T197: 0.09205441637 | U197: 0.09205441637 | V197: 0.09205441637 | W197: 0.09205441637 | Z197: 26.22089581 | AC197: 0.425 | AD197: 0 | AE197: 0 | AF197: 5.388772439
A198: 171 | B198: 0.9327272727 | C198: 1.2825 | D198: 5.883092813 | E198: 1.182555669 | F198: 5.588092531 | G198: 3.88195873 | H198: 1.234129847 | I198: 1.213781622 | J198: 0.00106390271 | K198: 0.09310158344 | L198: 0.09310158344 | M198: 0.09310158344 | P198: 31.66751837 | Q198: 0.5790070092 | R198: 0.5790028366 | S198: 0.5861616666 | T198: 0.09310158344 | U198: 0.09310158344 | V198: 0.09310158344 | W198: 0.09310158344 | Z198: 26.23463868 | AC198: 0.4275 | AD198: 0 | AE198: 0 | AF198: 5.432879684
A199: 172 | B199: 0.9381818182 | C199: 1.29 | D199: 5.91415125 | E199: 1.194990671 | F199: 5.619503159 | G199: 3.912643538 | H199: 1.247057506 | I199: 1.226515443 | J199: 0.001069556003 | K199: 0.09415421342 | L199: 0.09415421342 | M199: 0.09415421342 | P199: 31.72549818 | Q199: 0.5853567867 | R199: 0.5853525701 | S199: 0.592586888 | T199: 0.09415421342 | U199: 0.09415421342 | V199: 0.09415421342 | W199: 0.09415421342 | Z199: 26.24845077 | AC199: 0.43 | AD199: 0 | AE199: 0 | AF199: 5.47704741
A200: 173 | B200: 0.9436363636 | C200: 1.2975 | D200: 5.945172187 | E200: 1.20747494 | F200: 5.650876286 | G200: 3.943334075 | H200: 1.260035583 | I200: 1.239299237 | J200: 0.001075202479 | K200: 0.09521229851 | L200: 0.09521229851 | M200: 0.09521229851 | P200: 31.78360679 | Q200: 0.5917361442 | R200: 0.5917318833 | S200: 0.5990419897 | T200: 0.09521229851 | U200: 0.09521229851 | V200: 0.09521229851 | W200: 0.09521229851 | Z200: 26.26233195 | AC200: 0.4325 | AD200: 0 | AE200: 0 | AF200: 5.521274839
A201: 174 | B201: 0.9490909091 | C201: 1.305 | D201: 5.976155625 | E201: 1.220008246 | F201: 5.682211913 | G201: 3.974029679 | H201: 1.273063832 | I201: 1.252132767 | J201: 0.001080842136 | K201: 0.09627583089 | L201: 0.09627583089 | M201: 0.09627583089 | P201: 31.84184329 | Q201: 0.5981450012 | R201: 0.598140696 | S201: 0.6055268899 | T201: 0.09627583089 | U201: 0.09627583089 | V201: 0.09627583089 | W201: 0.09627583089 | Z201: 26.27628209 | AC201: 0.435 | AD201: 0 | AE201: 0 | AF201: 5.565561203
A202: 175 | B202: 0.9545454545 | C202: 1.3125 | D202: 6.007101562 | E202: 1.232590362 | F202: 5.713510041 | G202: 4.004729696 | H202: 1.286142011 | I202: 1.265015794 | J202: 0.001086474977 | K202: 0.09734480276 | L202: 0.09734480276 | M202: 0.09734480276 | P202: 31.9002068 | Q202: 0.6045832777 | R202: 0.6045789279 | S202: 0.6120415071 | T202: 0.09734480276 | U202: 0.09734480276 | V202: 0.09734480276 | W202: 0.09734480276 | Z202: 26.29030107 | AC202: 0.4375 | AD202: 0 | AE202: 0 | AF202: 5.60990574
A203: 176 | B203: 0.96 | C203: 1.32 | D203: 6.03801 | E203: 1.245221058 | F203: 5.744770668 | G203: 4.035433484 | H203: 1.299269876 | I203: 1.277948081 | J203: 0.001092100999 | K203: 0.09841920631 | L203: 0.09841920631 | M203: 0.09841920631 | P203: 31.95869645 | Q203: 0.6110508935 | R203: 0.611046499 | S203: 0.6185857597 | T203: 0.09841920631 | U203: 0.09841920631 | V203: 0.09841920631 | W203: 0.09841920631 | Z203: 26.30438875 | AC203: 0.44 | AD203: 0 | AE203: 0 | AF203: 5.654307695
A204: 177 | B204: 0.9654545455 | C204: 1.3275 | D204: 6.068880937 | E204: 1.257900106 | F204: 5.775993796 | G204: 4.06614041 | H204: 1.312447184 | I204: 1.290929391 | J204: 0.001097720204 | K204: 0.09949903374 | L204: 0.09949903374 | M204: 0.09949903374 | P204: 32.01731135 | Q204: 0.6175477686 | R204: 0.6175433292 | S204: 0.6251595662 | T204: 0.09949903374 | U204: 0.09949903374 | V204: 0.09949903374 | W204: 0.09949903374 | Z204: 26.31854502 | AC204: 0.4425 | AD204: 0 | AE204: 0 | AF204: 5.698766324
A205: 178 | B205: 0.9709090909 | C205: 1.335 | D205: 6.099714375 | E205: 1.270627281 | F205: 5.807179423 | G205: 4.096849851 | H205: 1.325673694 | I205: 1.303959488 | J205: 0.001103332592 | K205: 0.1005842772 | L205: 0.1005842772 | M205: 0.1005842772 | P205: 32.07605063 | Q205: 0.624073823 | R205: 0.6240693385 | S205: 0.6317628453 | T205: 0.1005842772 | U205: 0.1005842772 | V205: 0.1005842772 | W205: 0.1005842772 | Z205: 26.33276975 | AC205: 0.445 | AD205: 0 | AE205: 0 | AF205: 5.743280887
... 1822 more rows

Sheet Res EIA Tables
A1: Standard EIA Decade Resistor Values
A3: 0.2 | B3: 0.1 | C3: 0.05 | D3: 0.02 | E3: 0.01 | F3: 0.5%, 0.25%, 0.1%
A4: E6 | B4: E12 | C4: E24 | D4: E48 | E4: E96 | F4: E192
A5: 100 | B5: 100 | C5: 100 | D5: 100 | E5: 100 | F5: 100
F6: 101
E7: 102 | F7: 102
F8: 104
D9: 105 | E9: 105 | F9: 105
F10: 106
E11: 107 | F11: 107
F12: 109
C13: 110 | D13: 110 | E13: 110 | F13: 110
F14: 111
E15: 113 | F15: 113
F16: 114
D17: 115 | E17: 115 | F17: 115
F18: 117
E19: 118 | F19: 118
F20: 120
B21: 120 | C21: 120 | D21: 121 | E21: 121 | F21: 121
F22: 123
E23: 124 | F23: 124
F24: 126
D25: 127 | E25: 127 | F25: 127
F26: 129
E27: 130 | F27: 130
F28: 132
C29: 130 | D29: 133 | E29: 133 | F29: 133
F30: 135
E31: 137 | F31: 137
F32: 138
D33: 140 | E33: 140 | F33: 140
F34: 142
E35: 143 | F35: 143
F36: 145
A37: 150 | B37: 150 | C37: 150 | D37: 147 | E37: 147 | F37: 147
F38: 149
E39: 150 | F39: 150
F40: 152
D41: 154 | E41: 154 | F41: 154
F42: 156
E43: 158 | F43: 158
F44: 160
C45: 160 | D45: 162 | E45: 162 | F45: 162
F46: 164
E47: 165 | F47: 165
F48: 167
D49: 169 | E49: 169 | F49: 169
F50: 172
E51: 174 | F51: 174
F52: 176
B53: 180 | C53: 180 | D53: 178 | E53: 178 | F53: 178
F54: 180
E55: 182 | F55: 182
F56: 184
D57: 187 | E57: 187 | F57: 187
F58: 189
E59: 191 | F59: 191
F60: 193
C61: 200 | D61: 196 | E61: 196 | F61: 196
F62: 198
E63: 200 | F63: 200
F64: 203
D65: 205 | E65: 205 | F65: 205
F66: 208
E67: 210 | F67: 210
F68: 213
A69: 220 | B69: 220 | C69: 220 | D69: 215 | E69: 215 | F69: 215
F70: 218
E71: 221 | F71: 221
F72: 223
D73: 226 | E73: 226 | F73: 226
F74: 229
E75: 232 | F75: 232
F76: 234
C77: 240 | D77: 237 | E77: 237 | F77: 237
F78: 240
E79: 243 | F79: 243
F80: 246
D81: 249 | E81: 249 | F81: 249
F82: 252
E83: 255 | F83: 255
F84: 258
B85: 270 | C85: 270 | D85: 261 | E85: 261 | F85: 261
F86: 264
E87: 267 | F87: 267
F88: 271
D89: 274 | E89: 274 | F89: 274
F90: 277
E91: 280 | F91: 280
F92: 284
C93: 300 | D93: 287 | E93: 287 | F93: 287
F94: 291
E95: 294 | F95: 294
F96: 298
D97: 301 | E97: 301 | F97: 301
F98: 305
E99: 309 | F99: 309
F100: 312
A101: 330 | B101: 330 | C101: 330 | D101: 316 | E101: 316 | F101: 316
F102: 320
E103: 324 | F103: 324
F104: 328
D105: 332 | E105: 332 | F105: 332
F106: 336
E107: 340 | F107: 340
F108: 344
C109: 360 | D109: 348 | E109: 348 | F109: 348
F110: 352
E111: 357 | F111: 357
F112: 361
D113: 365 | E113: 365 | F113: 365
F114: 370
E115: 374 | F115: 374
F116: 379
B117: 390 | C117: 390 | D117: 383 | E117: 383 | F117: 383
F118: 388
E119: 392 | F119: 392
F120: 397
D121: 402 | E121: 402 | F121: 402
F122: 407
E123: 412 | F123: 412
F124: 417
C125: 430 | D125: 422 | E125: 422 | F125: 422
F126: 427
E127: 432 | F127: 432
F128: 437
D129: 442 | E129: 442 | F129: 442
F130: 448
E131: 453 | F131: 453
F132: 459
A133: 470 | B133: 470 | C133: 470 | D133: 464 | E133: 464 | F133: 464
F134: 470
E135: 475 | F135: 475
F136: 481
D137: 487 | E137: 487 | F137: 487
F138: 493
E139: 499 | F139: 499
F140: 505
C141: 510 | D141: 511 | E141: 511 | F141: 511
F142: 517
E143: 523 | F143: 523
F144: 530
D145: 536 | E145: 536 | F145: 536
F146: 542
E147: 549 | F147: 549
F148: 556
B149: 560 | C149: 560 | D149: 562 | E149: 562 | F149: 562
F150: 569
E151: 576 | F151: 576
F152: 583
D153: 590 | E153: 590 | F153: 590
F154: 597
E155: 604 | F155: 604
F156: 612
C157: 620 | D157: 619 | E157: 619 | F157: 619
F158: 626
E159: 634 | F159: 634
F160: 642
D161: 649 | E161: 649 | F161: 649
F162: 657
E163: 665 | F163: 665
F164: 673
A165: 680 | B165: 680 | C165: 680 | D165: 681 | E165: 681 | F165: 681
F166: 690
E167: 698 | F167: 698
F168: 706
D169: 715 | E169: 715 | F169: 715
F170: 723
E171: 732 | F171: 732
F172: 741
C173: 750 | D173: 750 | E173: 750 | F173: 750
F174: 759
E175: 768 | F175: 768
F176: 777
D177: 787 | E177: 787 | F177: 787
F178: 796
E179: 806 | F179: 806
F180: 816
B181: 820 | C181: 820 | D181: 825 | E181: 825 | F181: 825
F182: 835
E183: 845 | F183: 845
F184: 856
D185: 866 | E185: 866 | F185: 866
F186: 876
E187: 887 | F187: 887
F188: 898
C189: 910 | D189: 909 | E189: 909 | F189: 909
F190: 920
E191: 931 | F191: 931
F192: 942
D193: 953 | E193: 953 | F193: 953
F194: 965
E195: 976 | F195: 976
F196: 988
A197: 1000 | B197: 1000 | C197: 1000 | D197: 1000 | E197: 1000 | F197: 1000 | G197: End Values Required for Processing

Sheet Cap Tables
A1: Standard Capacitor Values
A3: pF | B3: nF | C3: µF | D3: mF
A4: 1 | B4: 1 | C4: 1 | D4: 1
A5: 1.1 | B5: 1.1
A6: 1.2 | B6: 1.2
A7: 1.3 | B7: 1.3
A8: 1.5 | B8: 1.5 | C8: 1.5 | D8: 1.5
A9: 1.6 | B9: 1.6
A10: 1.8 | B10: 1.8
A11: 2 | B11: 2
A12: 2.2 | B12: 2.2 | C12: 2.2 | D12: 2.2
A13: 2.4 | B13: 2.4
A14: 2.7 | B14: 2.7
A15: 3 | B15: 3
A16: 3.3 | B16: 3.3 | C16: 3.3 | D16: 3.3
A17: 3.6 | B17: 3.6 | C17: =C18 -> 4.7
A18: 3.9 | B18: 3.9 | C18: =C19 -> 4.7
A19: 4.3 | B19: 4.3 | C19: =C20 -> 4.7
A20: 4.7 | B20: 4.7 | C20: 4.7 | D20: 4.7
A21: 5.1 | B21: 5.1 | C21: =C22 -> 6.8
A22: 5.6 | B22: 5.6 | C22: =C23 -> 6.8
A23: 6.2 | B23: 6.2 | C23: =C24 -> 6.8
A24: 6.8 | B24: 6.8 | C24: 6.8 | D24: 6.8
A25: 7.5 | B25: 7.5 | C25: =C26 -> 10
A26: 8.2 | B26: 8.2 | C26: =C27 -> 10
A27: 9.1 | B27: 9.1 | C27: =C28 -> 10
A28: 10 | B28: 10 | C28: 10 | D28: 10
A29: 11 | B29: =B30 -> 15 | C29: 15
A30: 12 | B30: 15 | C30: 15
A31: 13 | B31: 15 | C31: 15
A32: 15 | B32: 15 | C32: 15
A33: 16 | B33: =B34 -> 22 | C33: 22
A34: 18 | B34: 22 | C34: 22
A35: 20 | B35: 22 | C35: 22
A36: 22 | B36: 22 | C36: 22
A37: 24 | B37: =B38 -> 33 | C37: 33
A38: 27 | B38: 33 | C38: 33
A39: 30 | B39: 33 | C39: 33
A40: 33 | B40: 33 | C40: 33
A41: 36 | B41: =B42 -> 47 | C41: 47
A42: 39 | B42: 47 | C42: 47
A43: 43 | B43: 47 | C43: 47
A44: 47 | B44: 47 | C44: 47
A45: 51 | B45: =B46 -> 68 | C45: 68
A46: 56 | B46: 68 | C46: 68
A47: 62 | B47: 68 | C47: 68
A48: 68 | B48: 68 | C48: 68
A49: 75 | B49: =B50 -> 100 | C49: 100
A50: 82 | B50: 100 | C50: 100
A51: 91 | B51: 100 | C51: 100
A52: 100 | B52: 100 | C52: 100
A53: 110 | B53: =B54 -> 150 | C53: 150
A54: 120 | B54: 150 | C54: 150
A55: 130 | B55: 150 | C55: 150
A56: 150 | B56: 150 | C56: 150
A57: 160 | B57: =B58 -> 220 | C57: 220
A58: 180 | B58: 220 | C58: 220
A59: 200 | B59: 220 | C59: 220
A60: 220 | B60: 220 | C60: 220
A61: 240 | B61: =B62 -> 330 | C61: 330
A62: 270 | B62: 330 | C62: 330
A63: 300 | B63: 330 | C63: 330
A64: 330 | B64: 330 | C64: 330
A65: 360 | B65: =B66 -> 470 | C65: 470
A66: 390 | B66: 470 | C66: 470
A67: 430 | B67: 470 | C67: 470
A68: 470 | B68: 470 | C68: 470
A69: 510 | B69: =B70 -> 680 | C69: 680
A70: 560 | B70: 680 | C70: 680
A71: 620 | B71: 680 | C71: 680
A72: 680 | B72: 680 | C72: 680
A73: 750 | B73: =B74 -> 1000 | C73: =C74 -> 1000
A74: 820 | B74: =B75 -> 1000 | C74: =C75 -> 1000
A75: 910 | B75: 1000 | C75: 1000
